{"text_format":"1","workbook":"xlsx","n_sheets":23,"sheets":["Cover Page","Contents","Facility Info","Operational Data","Operational Summary","Perf. Form 1","Energy Form 1","Permit Compliance","Improvements","Public Liasion","CO2 N2O","Residue Quality ","Water","Air (periodic)","Air (CEMS)","HCl","SO2","NOx","TOC","Particulates","CO 0.5 hourly","CO 95% 10 min","NH3"],"not_rendered":{"charts":8,"images":4,"macros":1,"external_links":0,"defined_names":23,"comments":0,"pivot_tables":0},"unopened":[],"bounds":{"document_bytes":16777216,"sheet_cells":100000,"rows_first":2000,"rows_last":500,"rows_between":2000,"halvings":0,"cell_chars":16384,"cell_head_chars":4096},"cells_cut":0,"cells_raw":0,"read":"whole","date_system":"1900"}

{"sheet":"Cover Page","index":0,"n_rows":53,"n_cols":14,"rows_kept":53,"cut":false,"hidden":false,"merged":[[48,2,48,3],[48,6,48,8],[52,2,52,3],[36,1,36,8],[40,2,40,8],[42,2,42,4],[44,2,44,4],[46,2,46,3],[46,6,46,8],[13,13,18,15],[34,1,34,8],[0,3,5,6],[7,1,23,8],[28,1,28,8],[30,1,30,8],[32,1,32,8]]}
[null,null,null,"Add company logo"]
[null,null,null,null,null,null,null,null,null,null,null,null,null,"Version 23.4a (for incinerators) - 15/11/2023"]
[]
[null,null,null,null,null,null,null,null,null,null,null,null,null,"Note that there is another version of this template available for co-incinerators"]
[]
[]
[]
[null,"Add photo"]
[]
[]
[]
[]
[null,null,null,null,null,null,null,null,null,null,null,null,null,"Notes:"]
[null,null,null,null,null,null,null,null,null,null,null,null,null,"This template may require adjustments by individual operators to meet specific reporting requirements as defined in the site Permit(s)"]
[]
[]
[]
[]
[]
[]
[]
[]
[]
[]
[]
[]
[]
[]
[null,"Annual Performance Report 2023"]
[]
[null,"Permit EPR/BT7116IW"]
[]
[null,"Lakeside Energy From Waste Ltd"]
[]
[]
[]
[null,"Lakeside"]
[]
[null,"Year:",2023]
[]
[null,"Address:","Lakeside EFW Ltd, Lakeside road, Colnbrook, "]
[null,null,null,"Berkshire, SL3 0FE"]
[null,"Tel: ","01753 688430"]
[]
[null,"Email: ","martin.rogers@lakesideefw.co.uk"]
[]
[null,"Prepared by:","Martin Rogers",null,null,"Position:","EHS Manager"]
[]
[null,"Approved by:","Danny Coulston",null,null,"Position:","Director of Operations"]
[]
[null,"Version:",1]
[]
[null,"Issue Date:","2024-01-30"]

{"sheet":"Contents","index":1,"n_rows":45,"n_cols":11,"rows_kept":45,"cut":false,"hidden":false,"merged":[[44,0,47,9],[37,1,37,6],[38,1,38,6],[39,1,39,6],[40,1,40,6],[41,1,41,6],[42,1,42,6],[36,1,36,6],[22,1,22,6],[23,1,23,6],[24,1,24,6],[27,1,27,6],[28,1,28,6],[29,1,29,6],[30,1,30,6],[31,1,31,6],[32,1,32,6],[35,1,35,6],[21,1,21,6],[9,1,9,6],[10,1,10,6],[11,1,11,6],[13,1,13,6],[14,1,14,6],[15,1,15,6],[16,1,16,6],[17,1,17,6],[18,1,18,6],[19,1,19,6],[20,1,20,6],[12,1,12,6],[4,10,7,14],[8,1,8,6],[3,1,3,6],[4,1,4,6],[5,1,5,6],[6,1,6,6],[7,1,7,6]]}
[{"$f":"+'Cover Page'!$B$29","v":"Annual Performance Report 2023"},null,null,null,{"$f":"+'Cover Page'!$B$33","v":"Lakeside Energy From Waste Ltd"}]
[]
["Contents",null,null,null,null,null,null,null,null,null,"Notes:"]
["Section","Subject",null,null,null,null,null,"Page ",null,null,"Section references and Page nos. to be inserted"]
[null,"Facility Information",null,null,null,null,null,3,null,null,"Sections and Subjects may require adjustment by individual operators to meet specific reporting requirements as defined in the sites Permit(s)"]
[null,"Operational Data",null,null,null,null,null,4]
[null,"Operational Summary",null,null,null,null,null,6]
[null,"Performance Form 1",null,null,null,null,null,7]
[null,"Energy Form 1",null,null,null,null,null,8]
[null,"Permit Compliance",null,null,null,null,null,9]
[null,"Improvements",null,null,null,null,null,10]
[null,"Public Liasion",null,null,null,null,null,11]
[null,"Carbon dioxide and nitrous oxide emissions",null,null,null,null,null,12]
[null,"Residue Quality ",null,null,null,null,null,14]
[null,"Emissions to Water",null,null,null,null,null,15]
[null,"Emissions to Air (periodically monitored)",null,null,null,null,null,16]
[null,"Emissions to Air (continuously monitored)",null,null,null,null,null,17]
[null,"Hydrogen Chloride emissions",null,null,null,null,null,18]
[null,"Sulphur Dioxdie emsissions",null,null,null,null,null,19]
[null,"Oxides of Notrigen emissions",null,null,null,null,null,20]
[null,"Total Organic Carbon emissions",null,null,null,null,null,21]
[null,"Particulate Matter emissions",null,null,null,null,null,22]
[null,"Carbon Monoxide emissions",null,null,null,null,null,24]
[null,"Ammonia emissions",null,null,null,null,null,25]
[]
[]
["Version Control"]
["Section","Information",null,null,null,null,null,"Date"]
[null,"Version 1",null,null,null,null,null,"2024-01-30"]
[]
[]
[]
[]
[]
["Distribution"]
["Copy","Name, Role",null,null,null,null,null,"No."]
[]
[]
[]
[]
[]
[]
[]
[]
["This report is required under the Industrial Emissions Directive’s Article 55(2) requirements on reporting and public information on waste incineration plants and co-incineration plants, which require the operator to produce an annual report on the functioning and monitoring of the plant and make it available to the public. "]

{"sheet":"Facility Info","index":2,"n_rows":22,"n_cols":11,"rows_kept":22,"cut":false,"hidden":false,"merged":[[4,0,17,8],[21,0,53,8],[4,10,13,13],[21,10,30,13]]}
[{"$f":"+'Cover Page'!$B$29","v":"Annual Performance Report 2023"},null,null,null,{"$f":"+'Cover Page'!$B$33","v":"Lakeside Energy From Waste Ltd"}]
[]
["Plant Description and Design",null,null,null,null,null,null,null,null,null,"Notes:"]
[]
["Lakeside Energy from Waste (EfW)\n\nA joint venture project between two of the UK’s leading recycling and waste management companies; Grundon Waste Management and Viridor.\n\nThe Lakeside EfW facility at Colnbrook near Slough has been operational since 2010. Using advanced technology, this plant is capable of processessing over 450,000 tonnes of residual waste per year, generating 37MW of power – enough to provide electricity to every household in Slough (56,000 homes).\n\nThere is an education centre adjacent to Lakeside EfW, where schools and other groups can learn about sustainable waste management and energy from waste.\n",null,null,null,null,null,null,null,null,null,"Include summary of plant design, design capacity, no. of combustion lines, electrical and heat capacity and any other general information that descibes the facility, its location and purpose "]
[]
[]
[]
[]
[]
[]
[]
[]
[]
[]
[]
[]
[]
[]
["Summary of Operational Processes and Procedures"]
[]
["Lakeside operate an Integrated Management System (IMS) that is ISO 14001, ISO 45001, ISO 9001, ISO 22301 and ISO 50001 certified. It includes all the procedures for receiving and inspecting waste, auditing suppliers to ensure waste quality and compliance. Operations includes procedures for running the plant, showing how to start a line, run a line and shutdown a line. EHS includes procedures for monitoring and reporting compliance. Maintenance includes all the procedures for planned maintenance, unplanned maintenance, outages and preventative maintenance.",null,null,null,null,null,null,null,null,null,"Include summary of key processes and procedures such as (but not limited to); waste reception, control rooms, grate, bed and bolier, energy & heat  generation, cooling systems, residue management, emission controls, health and safety systems, maintenance"]

{"sheet":"Operational Data","index":3,"n_rows":65,"n_cols":10,"rows_kept":65,"cut":false,"hidden":false,"merged":[[5,9,7,9],[52,0,56,0],[33,1,38,1],[3,1,3,2],[7,1,19,1],[23,1,26,1],[28,1,29,1],[9,9,20,9],[21,9,25,9]]}
[{"$f":"+'Cover Page'!$B$29","v":"Annual Performance Report 2023"},null,null,null,{"$f":"+'Cover Page'!$B$33","v":"Lakeside Energy From Waste Ltd"}]
[]
["Operational Data"]
["Plant Size",468280,null,"tonnes pa",null,"MWth",null,"MWe",null,"Notes:"]
["No. of combustion lines",2,null,"No. of Turbines:",null,1,null,null,null,"* - RDF to include SRF "]
[null,null,null,null,null,null,null,null,null,"** - Combusted tonnage = tonnes delivered in period + (tonnes in bunker at start of period – tonnes in bunker at end of period), or equivalent calculation depending on plant type"]
["Waste types received","Unit","Q1","Q2","Q3","Q4","Year Total","%"]
["Household / Local Authority","tonnes",65227,49928,63880,68647,{"$f":"SUM(C8:F8)","v":247682},{"$f":"IF(G8>0,G8/$G$18,\"-\")","v":0.60000135658126019}]
["Commercial & Industrial ",null,43283,32976,41824,45202,{"$f":"SUM(C9:F9)","v":163285},0.39555244833847869,null,"*** - CHP plants only"]
["Hazardous ",null,59.48,null,null,null,59.48,1.4408830956409168E-4,null,"**** Availability Definition: 'the availability of a line is to be calculated by the number of hours the line reported Continuously Monitored emission levels to the Regulator through the calendar year divided by the total number of hours in that year. \n\nThe overall plant availability is calculated as the Mean of all lines in the plant. For clarity this includes periods of abnormal operation.'  \n\nRationale: The primary function of an Energy from Waste facility is the disposal of waste. It follows therefore that the availability of a plant is determined by the period of time a facility spends undertaking this activity."]
["Clinical",null,142.30000000000001,308.5,761.82,563.29999999999995,1775.92,4.3021067706970704E-3]
["Waste wood (biomass) ",null,null,null,null,null,0,"-"]
["Refuse Derived Fuel * - H'hold/LA",null,null,null,null,null,{"$f":"SUM(C13:F13)","v":0},"-"]
["Refuse Derived Fuel *  - C&I",null,null,null,null,null,0,"-"]
["Other [Please specify]",null,null,null,null,null,0,"-"]
["Other [Please specify]",null,null,null,null,null,0,"-"]
["Other [Please specify]",null,null,null,null,null,0,"-"]
["Total waste received",null,{"$f":"SUM(C8:C17)","v":108711.78},{"$f":"SUM(D8:D17)","v":83212.5},{"$f":"SUM(E8:E17)","v":106465.82},{"$f":"SUM(F8:F17)","v":114412.3},412802.39999999997]
["Rejected Waste ",null,6.5,null,3,null,{"$f":"SUM(C19:F19)","v":9.5},{"$f":"IF(G19>0,G19/$G$18,\"-\")","v":2.3013432092449075E-5}]
["Unprocessed waste transferred out",null,null,null,null,null,{"$f":"SUM(C20:F20)","v":0},{"$f":"IF(G20>0,G20/$G$18,\"-\")","v":"-"}]
["Total waste combusted **",null,108704,83213,106463,114412,{"$f":"SUM(C21:F21)","v":412792}]
[null,null,null,null,null,null,null,null,null,"Password for protected cells\nA password has been set to prevent accidental  editing of cells with formulae. \nIf you still need to make an edit for some reason then the password = 1234"]
["Energy Usage / Export","Unit","Q1","Q2","Q3","Q4","Year Total","KWh/te"]
["Power Generated","MWh",76255,56020,79189,82374,{"$f":"SUM(C24:F24)","v":293838},{"$f":"IF(G24>0,G24*1000/$G$21,\"-\")","v":711.83065563286107}]
["Power Exported",null,68277,49919,71505,74724,{"$f":"SUM(C25:F25)","v":264425},{"$f":"IF(G25>0,G25*1000/$G$21,\"-\")","v":640.57685226457875}]
["Power Used on site",null,7978,6100,7684,7650,{"$f":"SUM(C26:F26)","v":29412},{"$f":"IF(G26>0,G26*1000/$G$21,\"-\")","v":71.251380840713963}]
["Power Imported",null,null,null,null,null,0,{"$f":"IF(G27>0,G27*1000/$G$21,\"-\")","v":"-"}]
["Parasitic Load","%",{"$f":"IF(C24>0,1-C25/(C24+C27),\"-\")","v":0.10462264769523311},{"$f":"IF(D24>0,1-D25/(D24+D27),\"-\")","v":0.10890753302391998},{"$f":"IF(E24>0,1-E25/(E24+E27),\"-\")","v":9.7033678920051991E-2},{"$f":"IF(F24>0,1-F25/(F24+F27),\"-\")","v":9.286910918493696E-2},{"$f":"IF(G24>0,1-G25/(G24+G27),\"-\")","v":0.10009937448526063}]
["Thermal Energy Produced ***","MWh",null,null,null,null,{"$f":"SUM(C29:F29)","v":0},{"$f":"IF(G29>0,G29*1000/$G$21,\"-\")","v":"-"}]
["Thermal Energy Exported ***",null,null,null,null,null,0,{"$f":"IF(G30>0,G30*1000/$G$21,\"-\")","v":"-"}]
["R1 value (if applicable)","R1"]
[]
["Waste Disposal & Recovery","Unit","Q1","Q2","Q3","Q4","Year Total","% inputs"]
["APC Residues - produced","tonnes",2951,2388,3115,3259,{"$f":"SUM(C34:F34)","v":11713},{"$f":"IF(G34>0,G34/$G$21,\"-\")","v":2.8375065408244346E-2}]
["IBA - produced",null,19757,15080,20120,20391,75348,{"$f":"IF(G35>0,G35/$G$21,\"-\")","v":0.18253260722107018}]
["Metals recycling",null,1260,927,1170,1324,{"$f":"SUM(C36:F36)","v":4681},1.1339851547510611E-2]
["Other - APC landfilled",null,0,51.28,0,0,{"$f":"SUM(C37:F37)","v":51.28},1.2422721370569198E-4]
["Other",null,0,0,0,0,0,"-"]
["Other",null,0,0,0,0,0,"-"]
[]
["Raw Material Usage","Unit","Q1","Q2","Q3","Q4","Year Total","kg or Ltr /te"]
["Mains Water","ltrs",21470000,17254000,22150000,20650000,{"$f":"SUM(C42:F42)","v":81524000},{"$f":"IF(G42>0,G42/$G$21,\"-\")","v":197.49413748328456}]
["Other Water","ltrs",null,null,null,null,0,{"$f":"IF(G43>0,G43/$G$21,\"-\")","v":"-"}]
["Ammonia","kgs",0,222,0,0,222,5.3780112017674765E-4]
["Urea","kgs",null,null,null,null,{"$f":"SUM(C45:F45)","v":0},"-"]
["Activated Carbon","kgs",41146,33496,42990,44084,161716,0.39176146824550862]
["Lime / hydrated lime","kgs",1205608,962490,1290378,1339659,4798135,11.623614314230895]
["Fuel oil","ltrs",14979,322761,27403,80966,446109,1.0807113509951742]
["Gas","cuf",null,null,null,null,0]
["Other",null,null,null,null,null,0]
[]
["Summary ","Line/Unit","Q1","Q2","Q3","Q4","Year Total",null,"Hrs in year "]
["Availability of waste combustion by line, hrs ****",1,2148,1691,2207,2173,{"$f":"SUM(C53:F53)","v":8219},{"$f":"+G53/$I$53","v":0.93824200913242006},8760]
[null,2,2159,1709,2107,2208,8183,{"$f":"+G54/$I$53","v":0.93413242009132424}]
[null,3,null,null,null,null,0,0]
[null,4,null,null,null,null,0,0]
[null,5,null,null,null,null,{"$f":"SUM(C57:F57)","v":0},0]
["Overall Availability, mean avg. of all lines, hrs",null,null,null,null,null,{"$f":"AVERAGE(G53:G54)","v":8201},0.93618721461187215]
["Hours of turbine operations, hrs",1,2123,2174,2208,2208,8713,0.99463470319634706]
["Hours of turbine operations, hrs",2,null,null,null,null,0,0]
["Hours of heat / steam export",null,null,null,null,null,0,{"$f":"IF(B61>0,G60/I53,\"n/a\")","v":"n/a"}]
["Net Calorific Value of waste","MJ/kg",9417,7262,9502,9653]
["Abnormal Events","qty.",null,2,1,null,3,{"$f":"IF(G63>0,\"yes\",\"no\")","v":"yes"}]
["Abnormal operation","hours",null,2,0.5,null,2.5,{"$f":"+(G64)/I53","v":2.8538812785388126E-4}]
["Permit Breaches","qty.",null,2,1,null,3,{"$f":"IF(G65>0,\"yes\",\"no\")","v":"yes"}]

{"sheet":"Operational Summary","index":4,"n_rows":31,"n_cols":11,"rows_kept":31,"cut":false,"hidden":false,"merged":[[4,0,26,8],[30,0,51,8],[4,10,13,13],[30,10,39,13]]}
[{"$f":"+'Cover Page'!$B$29","v":"Annual Performance Report 2023"},null,null,null,{"$f":"+'Cover Page'!$B$33","v":"Lakeside Energy From Waste Ltd"}]
[]
["Summary of Plant Operations and Maintenance during the reporting year",null,null,null,null,null,null,null,null,null,"Notes:"]
[]
["Line A1 operated for 8219 hours an availability of 93.8%, with line A2 operating for 8183 hours giving an availability of 93.4%. The turbine ran for 8713 hours, an availability of 99.5 %. Both lines had a major outage, line A1 was off for 21 days in April, with A2 off for 20 days in May. Inkonel was carried out in the boiler to improve corrosion resistance.\n",null,null,null,null,null,null,null,null,null,"Include summary of key operational and/or mainteanance activity undertaken in the year, such as any major component upgrades and/or replacements "]
[]
[]
[]
[]
[]
[]
[]
[]
[]
[]
[]
[]
[]
[]
[]
[]
[]
[]
[]
[]
[]
[]
[]
["Summary of Residue Handling for the reporting year"]
[]
["Material and disposal point listed below.\nIBA\nDays : Transport Avenue, Brentford TW8 9HF\nAPC\nCarbon8 - (deemed hazardous) Norfolk House, High Street, Brandon, Suffolk IP27\n0AX, Tel 01842 812229, License: JP 3332/FK\nCarbon8 Aggregates Ltd, Aggregate production facility, Central Avenue, Hallen,\nAvonmouth, BS10 7SD, Licence: HP3638WW\nOVERSIZE\nScrapped metal that has gone through the furnace.\nW N Thomas Metal Recycling, Stoke Gardens, Slough, Berkshire, SL1 3QA, Licence:\nCBDU80509\nM D J Light, Greystone Quarry Top Yard, Southerham, Lewes, East Sussex, BN8\n6JN, Licence: NP3333CF\nLakeside installed a conveyor to be able to feed clinical waste directly to the furnace.\n",null,null,null,null,null,null,null,null,null,"Include in here a summary of residue handling regimes and destinations "]

{"sheet":"Perf. Form 1","index":5,"n_rows":54,"n_cols":10,"rows_kept":54,"cut":false,"hidden":false,"merged":[[47,0,47,1],[49,0,49,9],[50,0,51,9],[38,0,38,9],[39,0,40,9],[43,0,43,1],[43,2,43,9],[45,0,45,1],[46,0,46,1],[36,0,36,3],[36,4,36,5],[36,7,36,8],[37,0,37,3],[37,4,37,5],[37,7,37,8],[34,0,34,3],[34,4,34,5],[34,7,34,8],[35,0,35,3],[35,4,35,5],[35,7,35,8],[31,0,31,3],[31,7,31,8],[32,0,32,3],[32,4,32,5],[32,7,32,8],[33,0,33,3],[33,4,33,5],[33,7,33,8],[23,0,23,3],[23,4,23,5],[23,6,23,7],[23,8,23,9],[25,0,25,9],[26,0,28,9],[21,0,21,1],[21,2,21,3],[21,4,21,5],[21,6,21,7],[21,8,21,9],[22,0,22,3],[22,4,22,5],[22,6,22,7],[22,8,22,9],[19,0,19,1],[19,2,19,3],[19,4,19,5],[19,6,19,7],[19,8,19,9],[20,0,20,1],[20,2,20,3],[20,4,20,5],[20,6,20,7],[20,8,20,9],[17,0,17,1],[17,2,17,3],[17,4,17,5],[17,6,17,7],[17,8,17,9],[18,0,18,1],[18,2,18,3],[18,4,18,5],[18,6,18,7],[18,8,18,9],[15,0,15,1],[15,2,15,3],[15,4,15,5],[15,6,15,7],[15,8,15,9],[16,0,16,9],[13,0,13,1],[13,2,13,3],[13,4,13,5],[13,6,13,7],[13,8,13,9],[14,0,14,3],[14,4,14,5],[14,6,14,7],[14,8,14,9],[11,0,11,1],[11,2,11,3],[11,4,11,5],[11,6,11,7],[11,8,11,9],[12,0,12,1],[12,2,12,3],[12,4,12,5],[12,6,12,7],[12,8,12,9],[9,0,9,9],[10,0,10,1],[10,2,10,3],[10,4,10,5],[10,6,10,7],[10,8,10,9],[2,0,2,4],[2,6,2,8],[3,1,3,4],[5,3,5,4],[5,6,5,7],[8,0,8,1],[8,2,8,3],[8,4,8,5],[8,6,8,7],[8,8,8,9]]}
[{"$f":"+'Cover Page'!C39","v":2023}," Annual Reporting Performance Form 1"]
[]
[{"$f":"+'Cover Page'!B31","v":"Permit EPR/BT7116IW"},null,null,null,null,"Operator: ",{"$f":"+'Cover Page'!B37:I37","v":0}]
["Facility:",{"$f":"+'Cover Page'!B33:I33","v":"Lakeside Energy From Waste Ltd"},null,null,null,"Form:","Performance 1"]
[]
["Reporting  Period from: ",null,null,"2023-01-01",null,"to:","2023-12-31"]
[]
[{"$f":"+A1","v":2023},"Annual Reporting of Waste Disposal and Recovery"]
["Waste Description",null,"Disposal Route(s)",null,"Disposal Tonnes",null,"Recovery Tonnes",null,"% / tonne of waste incinerated"]
["1) Hazardous Wastes"]
["APC Residues",null,null,null,null,null,11713,null,{"$f":"IF((E11+G11)>0,(E11+G11)/'Operational Data'!$G$21, \"-\")","v":2.8375065408244346E-2}]
["IBA",null,null,null,null,null,null,null,{"$f":"IF((E12+G12)>0,(E12+G12)/'Operational Data'!$G$21, \"-\")","v":"-"}]
[null,null,null,null,null,null,null,null,{"$f":"IF((E13+G13)>0,(E13+G13)/'Operational Data'!$G$21, \"-\")","v":"-"}]
[null,null,null,null,null,null,null,null,{"$f":"IF((E14+G14)>0,(E14+G14)/'Operational Data'!$G$21, \"-\")","v":"-"}]
["Total Hazardous Waste",null,null,null,{"$f":"SUM(E11:F14)","v":0},null,{"$f":"SUM(G11:H14)","v":11713},null,{"$f":"IF((E15+G15)>0,(E15+G15)/'Operational Data'!$G$21, \"-\")","v":2.8375065408244346E-2}]
[]
["2) Non-Hazardous Wastes"]
["IBA",null,null,null,null,null,75348,null,{"$f":"IF((E18+G18)>0,(E18+G18)/'Operational Data'!$G$21, \"-\")","v":0.18253260722107018}]
["Ferrous Metal",null,null,null,null,null,4681,null,{"$f":"IF((E19+G19)>0,(E19+G19)/'Operational Data'!$G$21, \"-\")","v":1.1339851547510611E-2}]
["Process Water",null,null,null,null,null,null,null,{"$f":"IF((E20+G20)>0,(E20+G20)/'Operational Data'!$G$21, \"-\")","v":"-"}]
[null,null,null,null,null,null,null,null,{"$f":"IF((E21+G21)>0,(E21+G21)/'Operational Data'!$G$21, \"-\")","v":"-"}]
[null,null,null,null,null,null,null,null,{"$f":"IF((E22+G22)>0,(E22+G22)/'Operational Data'!$G$21, \"-\")","v":"-"}]
["Total Non-Hazardous Waste",null,null,null,{"$f":"SUM(E18:F22)","v":0},null,{"$f":"SUM(G18:H22)","v":80029},null,{"$f":"IF((E23+G23)>0,(E23+G23)/'Operational Data'!$G$21, \"-\")","v":0.19387245876858078}]
["TOTAL WASTE",null,null,null,{"$f":"+E23+E15","v":0},null,{"$f":"+G23+G15","v":91742},null,{"$f":"IF((E24+G24)>0,(E24+G24)/'Operational Data'!$G$21, \"-\")","v":0.22224752417682514}]
[]
["Operator’s comments :"]
[]
[]
[]
[]
[{"$f":"+A1","v":2023},"Annual Reporting of Water and Other Raw Material Usage"]
["Raw Material",null,null,null,"Usage",null,"Unit","Specific Useage",null,"Unit"]
["Mains Water",null,null,null,{"$f":"+'Operational Data'!G42","v":81524000},null,"m3",{"$f":"IF(E33>0,E33/'Operational Data'!$G$21,\"-\")","v":197.49413748328456},null,"m3/te"]
["Total Water",null,null,null,{"$f":"+'Operational Data'!G43+'Operational Data'!G42","v":81524000},null,"m3",{"$f":"IF(E34>0,E34/'Operational Data'!$G$21,\"-\")","v":197.49413748328456},null,"m3/te"]
["Urea / Ammonia",null,null,null,{"$f":"+'Operational Data'!G44","v":222},null,"kg",{"$f":"IF(E35>0,E35/'Operational Data'!$G$21,\"-\")","v":5.3780112017674765E-4},null,"kg/te"]
["Activated Carbon",null,null,null,{"$f":"+'Operational Data'!G46","v":161716},null,"kg",{"$f":"IF(E36>0,E36/'Operational Data'!$G$21,\"-\")","v":0.39176146824550862},null,"kg/te"]
["Lime / hydrated lime / Sodium Bicarb.",null,null,null,{"$f":"+'Operational Data'!G47","v":4798135},null,"kg",{"$f":"IF(E37>0,E37/'Operational Data'!$G$21,\"-\")","v":11.623614314230895},null,"kg/te"]
[]
["Operator’s comments :"]
[]
[]
[]
[{"$f":"+A31","v":2023},"Annual Reporting of other performance indicators "]
["Parameter",null,"Results by Line"]
[null,null,"A1","A2","A3","A4","A5",null,"Turbine 1","Turbine 2"]
["Operating hours for the year, hours",null,8219,8183,null,null,null,null,8713]
["Number of periods of abnormal operation, qty."]
["Cumulative hours of abnormal operation for this year, hours"]
[]
["Operator’s comments :"]
[]
[]
[]
["Signed: ",null,null,null,null,null,"Date:","2024-01-10"]

{"sheet":"Energy Form 1","index":6,"n_rows":29,"n_cols":8,"rows_kept":29,"cut":false,"hidden":false,"merged":[[15,0,15,2],[15,3,15,4],[15,6,15,8],[17,0,17,8],[18,0,24,8],[13,0,13,2],[13,3,13,4],[13,6,13,8],[14,0,14,2],[14,3,14,4],[14,6,14,8],[11,0,11,2],[11,3,11,4],[11,6,11,8],[12,0,12,2],[12,3,12,4],[12,6,12,8],[9,0,9,2],[9,3,9,4],[9,6,9,8],[10,0,10,2],[10,3,10,4],[10,6,10,8],[2,6,2,8],[4,1,4,4],[6,3,6,4],[6,6,6,7],[8,0,8,2],[8,3,8,4],[8,6,8,8]]}
[{"$f":"+'Cover Page'!C39","v":2023}," Annual Reporting of Energy Usage/Export"]
[]
[{"$f":"+'Cover Page'!B31","v":"Permit EPR/BT7116IW"},null,null,null,null,"Operator: ",{"$f":"+'Cover Page'!B37:I37","v":0}]
[]
["Facility:",{"$f":"+'Cover Page'!B33:I33","v":"Lakeside Energy From Waste Ltd"},null,null,null,"Form:","Energy 1"]
[]
["Reporting  Period from: ",null,null,{"$f":"+'Perf. Form 1'!D6:E6","v":"2023-01-01"},null,"to:",{"$f":"+'Perf. Form 1'!G6:H6","v":"2023-12-31"}]
[]
["Energy Source",null,null,"Energy Usage",null,"Unit","Specific Useage (KWh/tonne incinerated"]
["Electricity Produced",null,null,{"$f":"+'Operational Data'!G24","v":293838},null,"MWh",{"$f":"+'Operational Data'!H24","v":711.83065563286107}]
["Electricity Imported   ",null,null,{"$f":"+'Operational Data'!G27","v":0},null,"MWh",{"$f":"+'Operational Data'!H27","v":"-"}]
["Electricity Exported",null,null,{"$f":"+'Operational Data'!G25","v":264425},null,"MWh",{"$f":"+'Operational Data'!H25","v":640.57685226457875}]
["Gas Oil",null,null,446109,null,"litres"]
["Steam/hot water exported",null,null,{"$f":"+'Operational Data'!G30","v":0},null,"GWh",{"$f":"+'Operational Data'!H30","v":"-"}]
[]
[]
[]
["Operator’s comments :"]
[]
[]
[]
[]
[]
[]
[]
[]
[]
[]
["Signed: ",null,null,null,null,null,"Date:","2024-01-30"]

{"sheet":"Permit Compliance","index":7,"n_rows":34,"n_cols":12,"rows_kept":34,"cut":false,"hidden":false,"merged":[[8,11,16,11],[26,0,26,10],[18,0,18,10],[31,1,31,3],[31,4,31,6],[31,7,31,9],[27,1,27,3],[27,4,27,6],[27,7,27,9],[28,1,28,3],[28,4,28,6],[28,7,28,9],[23,1,23,3],[23,4,23,6],[23,7,23,9],[24,1,24,3],[24,4,24,6],[32,1,32,3],[32,4,32,6],[32,7,32,9],[29,1,29,3],[29,4,29,6],[29,7,29,9],[30,1,30,3],[30,4,30,6],[30,7,30,9],[24,7,24,9],[21,1,21,3],[21,4,21,6],[21,7,21,9],[22,1,22,3],[22,4,22,6],[22,7,22,9],[19,1,19,3],[19,4,19,6],[19,7,19,9],[20,1,20,3],[20,4,20,6],[20,7,20,9],[14,0,14,1],[14,2,14,4],[14,5,14,8],[15,0,15,1],[16,2,16,4],[16,5,16,8],[15,2,15,4],[15,5,15,8],[16,0,16,1],[7,0,7,1],[7,2,7,8],[8,0,8,1],[8,2,8,4],[8,5,8,8],[33,4,33,8],[9,0,9,1],[9,2,9,4],[9,5,9,8],[10,0,10,1],[10,2,10,4],[10,5,10,8],[11,0,11,1],[11,2,11,4],[11,5,11,8],[12,0,12,1],[12,2,12,4],[12,5,12,8],[13,0,13,1],[13,2,13,4],[13,5,13,8]]}
[{"$f":"+'Cover Page'!$B$29","v":"Annual Performance Report 2023"},null,null,null,{"$f":"+'Cover Page'!$B$33","v":"Lakeside Energy From Waste Ltd"}]
[]
["Summary of Permit Compliance"]
[]
["Compliance with permit limits for continuously monitored pollutants"]
[]
["The plant met its emission limits as shown in the table below:"]
["Substance",null,"Percentage time compliant during operationNote 1",null,null,null,null,null,null,null,null,"Notes:"]
[null,null,"Half-hourly limit",null,null,"Daily limit",null,null,null,null,null,"Note 1: Please report to 2 decimal places, i.e. xx.xx%\n\nNote 2: Please provide a brief summary of each notification or non-compliance in the table (rather than just referring to notifications that were sent to the Regulator), including stating the value of measured result for any ELV exceedances.   \n\n"]
["Particulates",null,0.99990000000000001,null,null,1]
["Oxides of nitrogen",null,1,null,null,1]
["Sulphur dioxide",null,0.99990000000000001,null,null,1]
["Carbon monoxide",null,"100% 95% of 10-min averages",null,null,1]
["Total organic carbon",null,1,null,null,1]
["Hydrogen chloride",null,1,null,null,1]
["Hydrogen fluoride",null,1,null,null,1]
[null,null,1,null,null,1]
[]
["Summary of any notifications or non-compliances under the permit"]
["Date","Summary of notification or non-compliance [including Line/Reference]Note 2",null,null,"Reason ",null,null,"Measures taken to prevent reoccurrence"]
["2023-06-01","SO2 exceedence.",null,null,"Flow meter cleaning",null,null,"Cleaned meter"]
["2023-06-02","SO2 exceedence.",null,null,"Air flows reduced to work \non slag extractor.",null,null,"Work completed"]
["2023-07-05","Particulate exceedance",null,null,"Dust pocket on damper",null,null,"Damper cleared"]
[]
[]
[]
["Summary of any complaints received and actions to taken to resolve them."]
["Date","Summary of complaint [including Line/Reference]",null,null,"Reason *",null,null,"Measures taken to prevent reoccurrence"]
[]
[]
[]
[]
[]
[null,null,null,null,"* including whether substantiated by the operator or the EA"]

{"sheet":"Improvements","index":8,"n_rows":39,"n_cols":5,"rows_kept":39,"cut":false,"hidden":false,"merged":[[37,0,37,8],[38,0,47,8],[4,0,4,8],[5,0,13,8],[15,0,15,8],[16,0,24,8],[26,0,26,8],[27,0,35,8]]}
[{"$f":"+'Cover Page'!$B$29","v":"Annual Performance Report 2023"},null,null,null,{"$f":"+'Cover Page'!$B$33","v":"Lakeside Energy From Waste Ltd"}]
[]
["Summary of Plant Improvements"]
[]
["Summary of any efficiency improvements that have been completed within the year."]
["Lights have continued to be replaced around the plant reducing site energy usage. "]
[]
[]
[]
[]
[]
[]
[]
[]
[]
["Summary of any permit improvement conditions that have been completed within the year and the resulting environmental benefits."]
["Lakeside completed the 3 improvement required by the consolidated permit. Mercury and dioxins underwent \nextended testing to prove Lakeside are consistently below the permitted limits. The NOx CFD modelling was \nused to justify an upgrade to the NOx abatement system. "]
[]
[]
[]
[]
[]
[]
[]
[]
[]
["Summary of any changes to the plant or operating techniques which required a variation to the permit and a summary of the resulting environmental impact."]
["Lakeside have added a clinical waste conveyor, to feed waste directly to the furnace hopper, bypassing the \nwaste bunker. This allows Lakeside to incinerate low grade clinical waste code 18 01 03*. During the RPS\n issued, to allow EFW plants to incinerate clinical waste, it showed there was no significant impact to the \nemissions, which gave Lakeside the confidence to apply for a variation to be allowed to incinerate the waste."]
[]
[]
[]
[]
[]
[]
[]
[]
[]
["Summary of any other improvements made to the plant or planned to be made and a summary of the resulting environmental benefits."]
["Lakeside undertook computerised fluid Dynamic (CFD) modelling to optimise the Nox control system. The \nreport was commisioned by Babcock and Wilcox and determined that the ammonia was being injected at\ntoo high a temperature to give complete reduction of the NOx, with the potential that some of the ammonia \nwas being incinerated and adding to the NOx problem. As aresult Lakeside are commisioning a new NOx control\nsystem, which will utilise urea and be optimised to inject the urea at the correct temperature to optimise the \nreaction and minimise the use of reagent."]

{"sheet":"Public Liasion","index":9,"n_rows":29,"n_cols":5,"rows_kept":29,"cut":false,"hidden":false,"merged":[[23,0,24,1],[23,2,24,8],[25,0,26,1],[25,2,26,8],[28,0,28,8],[17,0,18,1],[17,2,18,8],[19,0,20,1],[19,2,20,8],[21,0,22,1],[21,2,22,8],[16,0,16,1],[16,2,16,8],[5,0,5,1],[5,2,5,8],[6,0,7,1],[6,2,7,8],[8,0,9,1],[8,2,9,8],[10,0,11,1],[10,2,11,8],[12,0,13,1],[12,2,13,8],[15,0,15,8]]}
[{"$f":"+'Cover Page'!$B$29","v":"Annual Performance Report 2023"},null,null,null,{"$f":"+'Cover Page'!$B$33","v":"Lakeside Energy From Waste Ltd"}]
[]
["Details of Public & Stakeholder Liasion"]
[]
["Summary of events held during the reporting year."]
["Date",null,"Description"]
[]
[]
[]
[]
[]
[]
[]
[]
[]
["List of events planned for next year"]
["Date",null,"Description"]
[]
[]
[]
[]
[]
[]
[]
[]
[]
[]
[]
["If you wish to be involved in the public liasion programme, please contact _martin.rogers@lakesideefw.co.uk_"]

{"sheet":"CO2 N2O","index":10,"n_rows":23,"n_cols":6,"rows_kept":23,"cut":false,"hidden":false,"merged":[[20,2,20,3],[23,1,23,3],[16,2,16,3],[4,0,4,3],[9,0,9,3],[17,0,17,3],[13,0,13,3],[12,0,12,1],[8,2,8,3],[11,2,11,3]]}
[{"$f":"+'Cover Page'!$B$29","v":"Annual Performance Report 2023"},null,{"$f":"+'Cover Page'!$B$33","v":"Lakeside Energy From Waste Ltd"}]
[]
["Carbon dioxide emissions and biogenic content of waste inputs",null,null,null,null,"Notes:"]
[]
["Carbon dioxide emissions (all types of plant)"]
[null,"Annual mass of carbon dioxide released","tonnes ",374137]
[null,"Annual mass of carbon dioxide released per tonne of waste burned","t CO2 / t waste ",0.90600000000000003]
[null,"Annual mass of carbon dioxide released per MWh of energy exported","t CO2 / MWh export ",1.27]
[null,"Description of how annual carbon dioxide mass emission has been calculated. \nSee Note 1","Mass emission calculated using calibrated CEMS figures.",null,null,"Note 1: Where available, data from CO2 CEMS should be used. \nOtherwise, only where no CEMS data is available, a suitable emissions factor should be used based on the tonnage of waste burned e.g.0.942 tCO2/t waste as per Tolvik report 2022, or other justified emissions factor  - refer to embedded Environment Agency guidance note above or updated version for suitable descriptive text."]
["Nitrous oxide emissions (only plants which use ammonia or urea to abate NOx emissions)"]
[null,"Annual mass emissions of nitrous oxide","tonnes N2O",2.1619999999999999]
[null,"Description of how annual nitrous oxide mass emission has been calculated\nSee Note 2","Mass emission calculated using calibrated CEMS figures.",null,null,"Note 2: Where available, data from N2O CEMS should be used. \nIf no CEMS data is available, from periodic monitoring. Otherwise, a suitable emissions factor should be used based on the tonnage of waste burned e.g. 0.0981 kgN20/t waste as per 2021 Pollution Inventory data for plants with urea-based SNCR - refer to embedded Environment Agency guidance note above or updated version for suitable descriptive text."]
["Total annual carbon dioxide and nitrous oxide emissions. \nSee Note 3. ",null,"tonnes CO2e",374733,null,"Note 3: Total annual carbon dioxide and nitrous oxide emissions reported as carbon dioxide equivalent where 1 tonne nitrous oxide is equivalent to 298 tonne carbon dioxide"]
["Biogenic CO2 emissions (See Note 4)",null,null,null,null,"Note 4: Only plants combusting residual municipal waste, refuse derived fuel or solid recovered fuel"]
[null,"Percentage of total carbon dioxide emissions arising from biogenic waste","%",0.51800000000000002]
[null,"No. of measurements undertaken","Number"]
[null,"Description of how percentage biogenic carbon dioxide emissions have been measured or calculated.\nSee Note 5","2017 WRAP figure used multiplying 51.8 % by measured CO2 produced = 194112 tonnes of biogenic CO2.",null,null,"Note 5: Examples include direct measurement via C14 method or BIOMA software - refer to embedded Environment Agency guidance note above or updated version for suitable descriptive text, quoting standards where relevant. \nOtherwise, as an approximation (and in lieu of any more accurate metrics which may be developed in future), the measured or estimated biogenic fraction by net calorific value can be assumed to be the same as the biogenic CO2 fraction of the total CO2 emissions from the plant. "]
["Biogenic fraction of waste feedstock (See Note 4)"]
[null,"Yearly average biogenic percentage of the waste by net calorific value (NCV)","%"]
[null,"If sampling undertaken, no. of samples used to ascertain average biogenic % above","Number"]
[null,"Description of how biogenic percentage (by NCV) has been calculated or estimated. \nSee Note 6",null,null,null,"Note 6: Where available, data from waste sampling should be used; otherwise, an estimated figure with justification can be used, or a figure assumed on the basis of a national average e.g. 2017 WRAP data for residual waste of 51.8% biogenic energy content - refer to embedded Environment Agency guidance note above or updated version for suitable descriptive text, quoting standards where relevant. "]
[]
[null,"Comments:"]

{"sheet":"Residue Quality ","index":11,"n_rows":35,"n_cols":6,"rows_kept":35,"cut":false,"hidden":false,"merged":[[35,0,40,6],[32,3,32,4],[34,0,34,6],[27,0,28,1],[29,0,29,1],[30,0,30,1],[31,0,31,1],[32,0,32,1],[29,3,29,4],[30,3,30,4],[29,5,29,6],[30,5,30,6],[31,5,31,6],[32,5,32,6],[20,0,21,1],[20,2,21,6],[22,0,23,1],[22,2,23,6],[31,3,31,4],[27,2,28,2],[28,3,28,4],[28,5,28,6],[27,3,27,6],[26,0,26,6],[5,0,6,6],[14,0,15,1],[14,2,15,6],[7,0,10,6],[16,0,17,1],[16,2,17,6],[18,0,19,1],[18,2,19,6],[12,0,12,6],[13,0,13,1],[13,2,13,6]]}
[{"$f":"+'Cover Page'!$B$29","v":"Annual Performance Report 2023"},null,null,null,{"$f":"+'Cover Page'!$B$33","v":"Lakeside Energy From Waste Ltd"}]
[]
["Residue Quality Monitoring Requirements"]
[]
["Summary of monitoring undertaken and compliance"]
["APC is sampled in January, April, July and September with a sample taken from each load going out, over the \nmonth. "]
[]
["IBA is sampled according to the ESA protocol twice a month. The January, April, July and September samples \nare analysed against compliance with the permit. All 24 samples are tested for HP4 (irritant), HP7 (carcinogenic), HP8 (corrosive) and HP14 (ecotoxic). All samples for 2023 were non-hazardous. "]
[]
[]
[]
[]
["Commentary on any specific events"]
["Date & Event",null,"Description"]
[]
[]
[]
[]
[]
[]
[]
[]
[]
[]
[]
[]
["Residue Quality Monitoring Results"]
["Parameter (unit) ",null,"Limit","Normal Operation "]
[null,null,null,"Bottom ash  ",null,"APC Residues"]
["Loss on Ignition (average %)",null,"<5%"]
["Total Organic Carbon (average %)",null,"<3%",0.57999999999999996]
["No. of Assessments Undertaken",null,"---",24,null,4]
["No. of Hazardous Results",null,"---",0]
[]
["Comments :"]

{"sheet":"Water","index":12,"n_rows":30,"n_cols":9,"rows_kept":30,"cut":false,"hidden":false,"merged":[[29,0,29,2],[29,3,29,4],[26,0,26,2],[26,3,26,4],[27,0,27,2],[27,3,27,4],[28,0,28,2],[28,3,28,4],[23,0,23,2],[23,3,23,4],[24,0,24,2],[24,3,24,4],[25,0,25,2],[25,3,25,4],[21,0,21,8],[22,0,22,2],[22,3,22,4],[14,0,15,1],[14,2,15,8],[16,0,17,1],[16,2,17,8],[18,0,19,1],[18,2,19,8],[5,0,6,8],[7,0,8,8],[9,0,10,8],[12,0,12,8],[13,0,13,1],[13,2,13,8]]}
[{"$f":"+'Cover Page'!$B$29","v":"Annual Performance Report 2023"},null,null,null,{"$f":"+'Cover Page'!$B$33","v":"Lakeside Energy From Waste Ltd"}]
[]
["Emissions to Water"]
[]
["Summary of monitoring undertaken and compliance"]
["All water generated on site is used in the process. 105 m3 of water was discharged to the fowl water sewer \nduring the outage, when the boilers were emptied."]
[]
[]
[]
[]
[]
[]
["Commentary on any specific events"]
["Date & Event",null,"Description"]
[]
[]
[]
[]
[]
[]
[]
["Emissions to Water / Sewer"]
["Parameter",null,null,"Monitoring Frequency",null,"Limit","Target","Max.","Average"]
["Suspended solids mg/l",null,null,"Composite",null,null,null,21,9.5]
["COD mg/l",null,null,"Composite",null,null,null,3,"< 2.0"]
["Sulphide mg/l",null,null,"Composite",null,null,null,"<0.020","< 0.020"]
["Cyanide mg/l",null,null,"Composite",null,null,null,"< 0.009","< 0.009"]
["Ammonical Nitrogen mg/l",null,null,"Composite",null,null,null,"< 0.41","< 0.41"]
["Chromium mg/l",null,null,"Composite",null,null,null,"< 0.002","< 0.002"]
["Lead mg/l",null,null,"Composite",null,null,null,"< 0.006","< 0.006"]

{"sheet":"Air (periodic)","index":13,"n_rows":40,"n_cols":13,"rows_kept":40,"cut":false,"hidden":false,"merged":[[13,10,14,12],[15,10,16,10],[15,11,16,11],[15,12,16,12],[18,3,18,4],[13,3,13,4],[14,3,14,4],[15,3,15,4],[16,3,16,4],[17,3,17,4],[37,0,37,1],[25,0,25,1],[33,3,33,4],[28,3,28,4],[34,3,34,4],[25,3,25,4],[32,3,32,4],[26,3,26,4],[27,3,27,4],[29,3,29,4],[19,0,19,1],[20,0,20,1],[21,0,21,1],[35,3,35,4],[36,3,36,4],[34,0,34,1],[35,0,35,1],[36,0,36,1],[19,3,19,4],[20,3,20,4],[24,3,24,4],[22,0,22,1],[22,3,22,4],[23,0,23,1],[21,3,21,4],[23,3,23,4],[40,0,40,9],[26,0,26,1],[27,0,27,1],[24,0,24,1],[38,0,38,1],[28,0,28,1],[29,0,29,1],[30,0,30,1],[31,0,31,1],[32,0,32,1],[33,0,33,1],[38,3,38,4],[30,3,30,4],[31,3,31,4],[37,3,37,4],[39,0,39,9],[17,0,17,1],[18,0,18,1],[13,0,13,1],[14,0,14,1],[15,0,15,1],[16,0,16,1],[12,0,12,1],[11,3,11,4],[12,3,12,4],[9,0,10,1],[9,5,9,9],[9,3,10,4],[9,2,10,2],[5,10,8,13],[9,10,11,13],[8,0,8,9],[5,0,6,9],[11,0,11,1]]}
[{"$f":"+'Cover Page'!$B$29","v":"Annual Performance Report 2023"},null,null,null,{"$f":"+'Cover Page'!$B$33","v":"Lakeside Energy From Waste Ltd"}]
[]
["Emissions to Air (periodically monitored)"]
[]
["Summary of monitoring undertaken, standards used and compliance",null,null,null,null,null,null,null,null,null,"Notes:"]
["Particulate BS EN 13284-1, Dioxans, furans, PCBs BS EN 1948-1, Metals BS EN 14385, Mercury BS EN 13211, Hydrogen Fluoride, CEN/TS 17340, Hydrogen Chloride BS EN 1911, VOC BS EN 12619, Nitrous Oxide CEN TS 17337, Oxides of nitrogen, BS EN 14792, Sulphur Dioxide CEN/TS 17021, Carbon monoxide BS EN 15058, Carbon dioxide CEN/TS 17405",null,null,null,null,null,null,null,null,null,"Template may require adjustment for any bespoke monitoring requirements of permit - please also check that all default ELV values, reference periods and the stated oxygen reference value match those for your plant, and edit if necessary!"]
[]
[]
["Results of emissions to air that are periodically monitored - oxygen reference 6% "]
["Substance",null,"Ref. Period","Emission Limit Value*",null,"Average",null,null,null,null,"User to add additional tables as necessary, depending on whether quarterly or bi-annual reporting is required for the compliance year"]
[null,null,null,null,null,"A1","A2","A3","A4","A5"]
["Hydrogen fluoride",null,"1 hr","2 mg/m3",null,0.05,0.03]
["Cd and Th and their compounds",null,"0.5-8hrs","0.05 mg/m3",null,8.0000000000000004E-4,8.0000000000000004E-4]
["Hg and its compounds",null,"0.5-8hrs","0.05 mg/m3",null,2.5000000000000001E-3,4.3E-3,null,null,null,"* Denotes limits that were in force until 2 December 2023; from 3 December 2023 the following new limits applied (those not listed remained unchanged):"]
["Sb, As, Pb, Cr, Co, Cu, Mn, Ni, V and their compounds",null,"0.5-8hrs","0.5 mg/m3",null,4.8000000000000001E-2,6.6000000000000003E-2]
["Dioxins & Furans (I-TEQ)",null,"6-8hrs","0.1 ng/m3",null,2.0999999999999999E-3,1.0699999999999999E-2,null,null,null,"Substance","Reference Period","Emission Limit Value"]
["PCBs (WHO-TEQ Humans / Mammals)",null,"6-8hrs","None set ng/m3",null,1E-4,8.0000000000000004E-4]
["PCBs (WHO-TEQ Fish)",null,"6-8hrs","None set ng/m3",null,1.0000000000000001E-5,4.0000000000000003E-5,null,null,null,"Hydrogen fluoride","Average of three consecutive measurements of at least 30 minutes each","1 mg/m3"]
["PCBs (WHO-TEQ Birds)",null,"6-8hrs","None set ng/m3",null,2.9999999999999997E-4,1.5E-3,null,null,null,"Cd and Th and their compounds","Average of three consecutive measurements of at least 30 minutes each","0.02 mg/m3"]
["Dioxins & Furans (WHO-TEQ Humans / Mammals)",null,"6-8hrs","None set ng/m3",null,2E-3,9.1999999999999998E-3,null,null,null,"Hg and its compounds","Average of three consecutive measurements of at least 30 minutes each","0.02 mg/m3"]
["Dioxins & Furans (WHO-TEQ Fish)",null,"6-8hrs","None set ng/m3",null,2E-3,1.1299999999999999E-2,null,null,null,"Sb, As, Pb, Cr, Co, Cu, Mn, Ni, V and their compounds","Average of three consecutive measurements of at least 30 minutes each","0.3 mg/m3"]
["Dioxins & Furans (WHO-TEQ Birds)",null,"6-8hrs","None set ng/m3",null,2.8999999999999998E-3,2.07E-2,null,null,null,"Dioxins & Furans (I-TEQ)","6-8hrs","0.06 ng/m3"]
["Polybrominated dibenzo-dioxins and furans",null,"6-8hrs","None set ng/m3",null,5.0000000000000001E-4,8.9999999999999998E-4]
["Anthanthrene",null,"6-8hrs","None set µg/m3",null,"<.0012","<0.0013"]
["Benzo(a)anthracene",null,"6-8hrs","None set µg/m3",null,"<.0012","<0.0013"]
["Benzo(a)pyrene",null,"6-8hrs","None set µg/m3",null,"<.0012","<0.0013"]
["Benzo(b)fluoranthene",null,"6-8hrs","None set µg/m3",null,"<.0012","<0.0013"]
["Benzo(b)naptho(2,1-d) thiophene",null,"6-8hrs","None set µg/m3",null,"<.0012","<0.0013"]
["Benzo(c)phenanthrene",null,"6-8hrs","None set µg/m3",null,"<.0012","<0.0013"]
["Benzo(ghi)perylene",null,"6-8hrs","None set µg/m3",null,"<.0012","<0.0013"]
["Benzo(k)fluoranthene",null,"6-8hrs","None set µg/m3",null,"<.0012","<0.0013"]
["Cholanthrene",null,"6-8hrs","None set µg/m3",null,"<.0012","<0.0013"]
["Chrysene",null,"6-8hrs","None set µg/m3",null,"<.0012","<0.0013"]
["Cyclopenta(cd)pyrene",null,"6-8hrs","None set µg/m3",null,"<.0012","<0.0013"]
["Dibenzo(ai)pyrene",null,"6-8hrs","None set µg/m3",null,"<.0012","<0.0013"]
["Dibenzo(ah)anthracene",null,"6-8hrs","None set µg/m3",null,"<.0012","<0.0013"]
["Fluoranthene",null,"6-8hrs","None set µg/m3",null,"<.0012",0.03]
["Indeno(123-cd) pyrene",null,"6-8hrs","None set µg/m3",null,"<.0012","<0.0013"]
["Naphthalene",null,"6-8hrs","None set µg/m3",null,0.27,0.06]
["Comments :"]

{"sheet":"Air (CEMS)","index":14,"n_rows":28,"n_cols":16,"rows_kept":28,"cut":false,"hidden":false,"merged":[[28,0,29,12],[13,0,14,0],[5,0,6,12],[7,0,8,12],[10,0,10,12],[11,0,12,0],[11,2,12,2],[11,1,12,1],[11,3,11,4],[11,5,11,6],[11,7,11,8],[11,9,11,10],[11,11,11,12],[14,13,15,13],[14,14,15,14],[14,15,15,15],[12,13,13,15],[26,0,26,12]]}
[{"$f":"+'Cover Page'!$B$29","v":"Annual Performance Report 2023"},null,null,null,null,null,null,null,{"$f":"+'Cover Page'!$B$33","v":"Lakeside Energy From Waste Ltd"}]
[]
["Emissions to Air (continously monitored)"]
[null,null,null,null,null,null,null,null,null,null,null,null,null,"Notes:"]
["Summary of monitoring undertaken, standards used and compliance",null,null,null,null,null,null,null,null,null,null,null,null,"Template may require adjustment for any bespoke monitoring requirements of permit"]
[null,null,null,null,null,null,null,null,null,null,null,null,null,"Please check that all default ELV values match those for your plant and edit if necessary!"]
[null,null,null,null,null,null,null,null,null,null,null,null,null,"Report to 1 decimal place"]
[]
[]
[]
["Results of emissions to air that are continuously monitored (maximum and average values for each line) - oxygen reference 11%"]
["Substance","Reference Period","Emission Limit Value**","A1",null,"A2",null,"A3",null,"A4",null,"A5"]
[null,null,null,"Max.","Avg.","Max.","Avg.","Max.","Avg.","Max.","Avg.","Max.","Avg.","** Denotes limits that were in force until 2 December 2023; from 3 December 2023 the following new limits applied (those not listed remained unchanged):"]
["Oxides of nitrogen","Daily mean","200 mg/m3 ",181.75,137.56,187.2,133.81]
[null,"½ hourly mean","400 mg/m3 ",266.87,137.5,284.36,133.91999999999999,null,null,null,null,null,null,"Substance","Reference Period","Emission Limit Value"]
["Particulates","Daily mean","10 mg/m3",6.82,0.49,5.93,0.42]
[null,"½ hourly mean","30 mg/m3 ",84.7,0.53,8.73,0.42,null,null,null,null,null,null,"Oxides of nitrogen","Daily mean","180 mg/m3 "]
["Total Organic Carbon ","Daily mean","10 mg/m3 ",0.69,0.28000000000000003,1,0.4,null,null,null,null,null,null,"Particulates","Daily mean","5 mg/m3 "]
[null,"½ hourly mean","20 mg/m3 ",9.14,0.28000000000000003,5.63,0.4,null,null,null,null,null,null,"Hydrogen chloride","Daily mean","8 mg/m3 "]
["Hydrogen chloride ","Daily mean","10 mg/m3 ",6.52,3.54,7.5,4.05,null,null,null,null,null,null,"Sulphur dioxide","Daily mean","40 mg/m3 "]
[null,"½ hourly mean","60 mg/m3 ",28.2,4.0599999999999996,28.2,4.0599999999999996,null,null,null,null,null,null,"Ammonia","Daily mean","15 mg/m3 "]
["Sulphur dioxide","Daily mean","50 mg/m3 ",32.520000000000003,4.84,12.07,6.1]
[null,"½ hourly mean","200 mg/m3 ",737.29,4.8499999999999996,93.68,6.1]
["Carbon monoxide ","Daily mean","50 mg/m3 ",19.89,6.65,19.239999999999998,5.01]
[null,"95%ile 10-min avg *","150 mg/m3 *",47.46,6.71,51.02,4.99]
[" Ammonia","Daily mean","No limit set until 03/12/23",0.32,-0.05,0.47,0.13]
["** = delete as appropriate, depending on whether your plant has half-horly or 10-min CO ELVs\n"]
["Comments :"]

{"sheet":"HCl","index":15,"n_rows":79,"n_cols":17,"rows_kept":79,"cut":false,"hidden":false,"merged":[[12,16,15,18],[51,9,63,9],[66,9,78,9],[4,9,4,14],[4,1,4,3],[4,4,4,6],[48,0,51,6],[47,0,47,6],[6,9,18,9],[21,9,33,9],[36,9,48,9],[3,16,7,18],[9,16,11,18],[18,4,18,6]]}
[{"$f":"+'Cover Page'!$B$29","v":"Annual Performance Report 2023"},null,null,null,{"$f":"+'Cover Page'!$B$33","v":"Lakeside Energy From Waste Ltd"}]
[]
["Monitoring of Hydrogen Chloride emissions",null,null,"Whole Installation",null,null,"See  Notes in Cell Q3",null,null,{"$f":"+A3","v":"Monitoring of Hydrogen Chloride emissions"},null,null,null,"Per Combustion Line",null,null,"Notes:"]
[null,null,null,null,null,null,null,null,null,null,null,null,null,null,null,null,"User to add logic to complete Whole installation, Table A5:G18. From the data in Per Combustion Line, Table J6:O79, subject to No. of lines installed"]
["mg/Nm3","1/2 Hourly Reference Periods",null,null,"Daily Reference Periods"]
[{"$f":"+'Cover Page'!C39","v":2023},"1/2 hourly HCl ELV","Monthly 1/2 hourly mean","Highest 1/2 hourly maximum","Daily HCl ELV*","Monthly daily mean","Highest daily maximum",null,null,{"$f":"+A6","v":2023},"mg/Nm3","Monthly 1/2 hourly mean","Monthly 1/2 hourly maximum","Monthly daily mean","Monthly daily maximum"]
["Jan",60,{"$f":"(L7+L22)/2","v":3.2450000000000001},{"$f":"(M7+M22)/2","v":8.9550000000000001},10,{"$f":"(N7+N22)/2","v":3.2450000000000001},{"$f":"(O7+O22)/2","v":3.76},null,null,"A1","Jan",2.95,10.46,2.95,3.71]
["Feb",60,{"$f":"(L8+L23)/2","v":3.085},{"$f":"(M8+M23)/2","v":9.1300000000000008},10,{"$f":"(N8+N23)/2","v":3.085},{"$f":"(O8+O23)/2","v":3.5300000000000002},null,null,null,"Feb",2.5099999999999998,5.55,2.5099999999999998,2.89]
["Mar",60,3.8899999999999997,17.72,10,3.875,4.9000000000000004,null,null,null,"Mar",3.35,7.24,3.35,4.55,null,"Whole Installation table A5:G18:"]
["Apr",60,3.3450000000000002,15.09,10,3.3050000000000002,3.7,null,null,null,"Apr",3.22,7.19,3.22,3.63,null,"Mean: for 1/2 hourly and daily periods calculate mean of values across all operational combustion lines for the month"]
["May",60,2.8250000000000002,5.84,10,2.81,3.5049999999999999,null,null,null,"May",2.4,6.61,2.37,3.2]
["Jun",60,3.62,15.63,10,3.61,4.68,null,null,null,"Jun",3.21,13.82,3.21,4.24]
["Jul",60,3.63,16.835000000000001,10,3.63,4.82,null,null,null,"Jul",3.32,25.71,3.32,4.83,null,"Maximum: for 1/2 hourly and daily periods use the highest value across all operational combustion lines for the month"]
["Aug",60,3.9450000000000003,11.780000000000001,10,3.9450000000000003,4.75,null,null,null,"Aug",3.89,11.68,3.89,4.8499999999999996]
["Sep",60,4.4400000000000004,9.58,10,4.4550000000000001,5.49,null,null,null,"Sep",4.6900000000000004,12.34,4.72,5.63]
["Oct",60,3.74,6.5549999999999997,10,3.74,5.5150000000000006,null,null,null,"Oct",3.44,7.29,3.44,6.19]
["Nov",60,4.62,11.834999999999999,10,4.6100000000000003,6.7750000000000004,null,null,null,"Nov",4.3600000000000003,15.78,4.3600000000000003,6.05]
["Dec",60,5.2550000000000008,17.645000000000003,10,5.2350000000000003,6.9249999999999998,null,null,null,"Dec",5.19,18.760000000000002,5.19,6.52]
[null,null,null,null,"* ELV reduced to 8 mg/Nm3 on 3 December 2023",null,null,null,null,null,"Annual",{"$f":"AVERAGE(L7:L18)","v":3.5441666666666669},{"$f":"MAX(M7:M18)","v":25.71},{"$f":"AVERAGE(N7:N18)","v":3.5441666666666669},{"$f":"MAX(O7:O18)","v":6.52}]
[]
[null,null,null,null,null,null,null,null,null,{"$f":"+A6","v":2023},"mg/Nm3","Monthly 1/2 hourly mean","Monthly 1/2 hourly maximum","Monthly daily mean","Monthly daily maximum"]
[null,null,null,null,null,null,null,null,null,"A2","Jan",3.54,7.45,3.54,3.81]
[null,null,null,null,null,null,null,null,null,null,"Feb",3.66,12.71,3.66,4.17]
[null,null,null,null,null,null,null,null,null,null,"Mar",4.43,28.2,4.4000000000000004,5.25]
[null,null,null,null,null,null,null,null,null,null,"Apr",3.47,22.99,3.39,3.77]
[null,null,null,null,null,null,null,null,null,null,"May",3.25,5.07,3.25,3.81]
[null,null,null,null,null,null,null,null,null,null,"Jun",4.03,17.440000000000001,4.01,5.12]
[null,null,null,null,null,null,null,null,null,null,"Jul",3.94,7.96,3.94,4.8099999999999996]
[null,null,null,null,null,null,null,null,null,null,"Aug",4,11.88,4,4.6500000000000004]
[null,null,null,null,null,null,null,null,null,null,"Sep",4.1900000000000004,6.82,4.1900000000000004,5.35]
[null,null,null,null,null,null,null,null,null,null,"Oct",4.04,5.82,4.04,4.84]
[null,null,null,null,null,null,null,null,null,null,"Nov",4.88,7.89,4.8600000000000003,7.5]
[null,null,null,null,null,null,null,null,null,null,"Dec",5.32,16.53,5.28,7.33]
[null,null,null,null,null,null,null,null,null,null,"Annual",{"$f":"AVERAGE(L22:L33)","v":4.0625000000000009},{"$f":"MAX(M22:M33)","v":28.2},{"$f":"AVERAGE(N22:N33)","v":4.0466666666666669},{"$f":"MAX(O22:O33)","v":7.5}]
[]
[null,null,null,null,null,null,null,null,null,{"$f":"+A6","v":2023},"mg/Nm3","Monthly 1/2 hourly mean","Monthly 1/2 hourly maximum","Monthly daily mean","Monthly daily maximum"]
[null,null,null,null,null,null,null,null,null,"A3","Jan"]
[null,null,null,null,null,null,null,null,null,null,"Feb"]
[null,null,null,null,null,null,null,null,null,null,"Mar"]
[null,null,null,null,null,null,null,null,null,null,"Apr"]
[null,null,null,null,null,null,null,null,null,null,"May"]
[null,null,null,null,null,null,null,null,null,null,"Jun"]
[null,null,null,null,null,null,null,null,null,null,"Jul"]
[null,null,null,null,null,null,null,null,null,null,"Aug"]
[null,null,null,null,null,null,null,null,null,null,"Sep"]
[null,null,null,null,null,null,null,null,null,null,"Oct"]
[null,null,null,null,null,null,null,null,null,null,"Nov"]
["Comments :",null,null,null,null,null,null,null,null,null,"Dec"]
[null,null,null,null,null,null,null,null,null,null,"Annual",{"$f":"AVERAGE(L37:L48)","v":{"$error":"#DIV/0!"}},{"$f":"MAX(M37:M48)","v":0},{"$f":"AVERAGE(N37:N48)","v":{"$error":"#DIV/0!"}},{"$f":"MAX(O37:O48)","v":0}]
[]
[null,null,null,null,null,null,null,null,null,{"$f":"+A6","v":2023},"mg/Nm3","Monthly 1/2 hourly mean","Monthly 1/2 hourly maximum","Monthly daily mean","Monthly daily maximum"]
[null,null,null,null,null,null,null,null,null,"A4","Jan"]
[null,null,null,null,null,null,null,null,null,null,"Feb"]
[null,null,null,null,null,null,null,null,null,null,"Mar"]
[null,null,null,null,null,null,null,null,null,null,"Apr"]
[null,null,null,null,null,null,null,null,null,null,"May"]
[null,null,null,null,null,null,null,null,null,null,"Jun"]
[null,null,null,null,null,null,null,null,null,null,"Jul"]
[null,null,null,null,null,null,null,null,null,null,"Aug"]
[null,null,null,null,null,null,null,null,null,null,"Sep"]
[null,null,null,null,null,null,null,null,null,null,"Oct"]
[null,null,null,null,null,null,null,null,null,null,"Nov"]
[null,null,null,null,null,null,null,null,null,null,"Dec"]
[null,null,null,null,null,null,null,null,null,null,"Annual",{"$f":"AVERAGE(L52:L63)","v":{"$error":"#DIV/0!"}},{"$f":"MAX(M52:M63)","v":0},{"$f":"AVERAGE(N52:N63)","v":{"$error":"#DIV/0!"}},{"$f":"MAX(O52:O63)","v":0}]
[]
[null,null,null,null,null,null,null,null,null,{"$f":"+A6","v":2023},"mg/Nm3","Monthly 1/2 hourly mean","Monthly 1/2 hourly maximum","Monthly daily mean","Monthly daily maximum"]
[null,null,null,null,null,null,null,null,null,"A5","Jan"]
[null,null,null,null,null,null,null,null,null,null,"Feb"]
[null,null,null,null,null,null,null,null,null,null,"Mar"]
[null,null,null,null,null,null,null,null,null,null,"Apr"]
[null,null,null,null,null,null,null,null,null,null,"May"]
[null,null,null,null,null,null,null,null,null,null,"Jun"]
[null,null,null,null,null,null,null,null,null,null,"Jul"]
[null,null,null,null,null,null,null,null,null,null,"Aug"]
[null,null,null,null,null,null,null,null,null,null,"Sep"]
[null,null,null,null,null,null,null,null,null,null,"Oct"]
[null,null,null,null,null,null,null,null,null,null,"Nov"]
[null,null,null,null,null,null,null,null,null,null,"Dec"]
[null,null,null,null,null,null,null,null,null,null,"Annual",{"$f":"AVERAGE(L67:L78)","v":{"$error":"#DIV/0!"}},{"$f":"MAX(M67:M78)","v":0},{"$f":"AVERAGE(N67:N78)","v":{"$error":"#DIV/0!"}},{"$f":"MAX(O67:O78)","v":0}]

{"sheet":"SO2","index":16,"n_rows":79,"n_cols":17,"rows_kept":79,"cut":false,"hidden":false,"merged":[[3,16,7,18],[9,16,11,18],[12,16,15,18],[66,9,78,9],[4,1,4,3],[4,4,4,6],[4,9,4,14],[6,9,18,9],[21,9,33,9],[36,9,48,9],[47,0,47,6],[48,0,51,6],[51,9,63,9],[18,4,18,6]]}
[{"$f":"+'Cover Page'!$B$29","v":"Annual Performance Report 2023"},null,null,null,{"$f":"+'Cover Page'!$B$33","v":"Lakeside Energy From Waste Ltd"}]
[]
["Monitoring of Sulphur dioxide emissions",null,null,"Whole Installation",null,null,"See  Notes in Cell Q3",null,null,{"$f":"+A3","v":"Monitoring of Sulphur dioxide emissions"},null,null,null,"Per Combustion Line",null,null,"Notes:"]
[null,null,null,null,null,null,null,null,null,null,null,null,null,null,null,null,"User to add logic to complete Whole installation, Table A5:G18. From the data in Per Combustion Line, Table J6:O79, subject to No. of lines installed"]
["mg/Nm3","1/2 Hourly Reference Periods",null,null,"Daily Reference Periods"]
[{"$f":"+'Cover Page'!C39","v":2023},"1/2 hourly SO2 ELV","Monthly 1/2 hourly mean","Highest 1/2 hourly maximum","Daily SO2 ELV*","Monthly daily mean","Highest daily maximum",null,null,{"$f":"+A6","v":2023},"mg/Nm3","Monthly 1/2 hourly mean","Monthly 1/2 hourly maximum","Monthly daily mean","Monthly daily maximum"]
["Jan",200,{"$f":"(L7+L22)/2","v":6.4700000000000006},{"$f":"(M7+M22)/2","v":18.015000000000001},50,{"$f":"(N7+N22)/2","v":6.4700000000000006},{"$f":"(O7+O22)/2","v":8.8550000000000004},null,null,"A1","Jan",5.62,9.01,5.62,7.68]
["Feb",200,{"$f":"(L8+L23)/2","v":5.6750000000000007},{"$f":"(M8+M23)/2","v":16.785},50,{"$f":"(N8+N23)/2","v":5.6750000000000007},{"$f":"(O8+O23)/2","v":7.2799999999999994},null,null,null,"Feb",4.87,16.68,4.87,6.64]
["Mar",200,5.3450000000000006,11.465,50,5.33,6.3849999999999998,null,null,null,"Mar",4.2,11.76,4.17,5.05,null,"Whole Installation table A5:G18:"]
["Apr",200,6.18,13.57,50,6.1549999999999994,8.0399999999999991,null,null,null,"Apr",5.15,14.35,5.0999999999999996,6.73,null,"Mean: for 1/2 hourly and daily periods calculate mean of values across all operational combustion lines for the month"]
["May",200,5.9550000000000001,52.095000000000006,50,5.9649999999999999,9.0850000000000009,null,null,null,"May",4.68,10.51,4.68,6.1]
["Jun",200,5.4499999999999993,386.58,50,5.42,19.545000000000002,null,null,null,"Jun",5.18,737.29,5.12,32.520000000000003]
["Jul",200,5.0250000000000004,37.145000000000003,50,5.0250000000000004,7.5649999999999995,null,null,null,"Jul",4.51,37.340000000000003,4.51,7.82,null,"Maximum: for 1/2 hourly and daily periods use the highest value across all operational combustion lines for the month"]
["Aug",200,4.9950000000000001,41.41,50,4.9950000000000001,5.8949999999999996,null,null,null,"Aug",4.76,68.89,4.76,5.92]
["Sep",200,4.7699999999999996,13.565000000000001,50,4.7450000000000001,5.96,null,null,null,"Sep",4.28,14.81,4.28,5.0999999999999996]
["Oct",200,5.14,12.275,50,5.14,6.49,null,null,null,"Oct",4.8899999999999997,9.8000000000000007,4.8899999999999997,5.86]
["Nov",200,5.57,22.36,50,5.5649999999999995,6.66,null,null,null,"Nov",5.09,9.19,5.08,6.28]
["Dec",200,5.1449999999999996,24.630000000000003,50,5.1300000000000008,7.32,null,null,null,"Dec",5.01,14.27,4.9800000000000004,6.7]
[null,null,null,null,"* ELV reduced to 40 mg/Nm3 on 3 December 2023",null,null,null,null,null,"Annual",{"$f":"AVERAGE(L7:L18)","v":4.8533333333333335},{"$f":"MAX(M7:M18)","v":737.29},{"$f":"AVERAGE(N7:N18)","v":4.8383333333333338},{"$f":"MAX(O7:O18)","v":32.520000000000003}]
[]
[null,null,null,null,null,null,null,null,null,{"$f":"+A6","v":2023},"mg/Nm3","Monthly 1/2 hourly mean","Monthly 1/2 hourly maximum","Monthly daily mean","Monthly daily maximum"]
[null,null,null,null,null,null,null,null,null,"A2","Jan",7.32,27.02,7.32,10.029999999999999]
[null,null,null,null,null,null,null,null,null,null,"Feb",6.48,16.89,6.48,7.92]
[null,null,null,null,null,null,null,null,null,null,"Mar",6.49,11.17,6.49,7.72]
[null,null,null,null,null,null,null,null,null,null,"Apr",7.21,12.79,7.21,9.35]
[null,null,null,null,null,null,null,null,null,null,"May",7.23,93.68,7.25,12.07]
[null,null,null,null,null,null,null,null,null,null,"Jun",5.72,35.869999999999997,5.72,6.57]
[null,null,null,null,null,null,null,null,null,null,"Jul",5.54,36.950000000000003,5.54,7.31]
[null,null,null,null,null,null,null,null,null,null,"Aug",5.23,13.93,5.23,5.87]
[null,null,null,null,null,null,null,null,null,null,"Sep",5.26,12.32,5.21,6.82]
[null,null,null,null,null,null,null,null,null,null,"Oct",5.39,14.75,5.39,7.12]
[null,null,null,null,null,null,null,null,null,null,"Nov",6.05,35.53,6.05,7.04]
[null,null,null,null,null,null,null,null,null,null,"Dec",5.28,34.99,5.28,7.94]
[null,null,null,null,null,null,null,null,null,null,"Annual",{"$f":"AVERAGE(L22:L33)","v":6.1000000000000005},{"$f":"MAX(M22:M33)","v":93.68},{"$f":"AVERAGE(N22:N33)","v":6.0975000000000001},{"$f":"MAX(O22:O33)","v":12.07}]
[]
[null,null,null,null,null,null,null,null,null,{"$f":"+A6","v":2023},"mg/Nm3","Monthly 1/2 hourly mean","Monthly 1/2 hourly maximum","Monthly daily mean","Monthly daily maximum"]
[null,null,null,null,null,null,null,null,null,"A3","Jan"]
[null,null,null,null,null,null,null,null,null,null,"Feb"]
[null,null,null,null,null,null,null,null,null,null,"Mar"]
[null,null,null,null,null,null,null,null,null,null,"Apr"]
[null,null,null,null,null,null,null,null,null,null,"May"]
[null,null,null,null,null,null,null,null,null,null,"Jun"]
[null,null,null,null,null,null,null,null,null,null,"Jul"]
[null,null,null,null,null,null,null,null,null,null,"Aug"]
[null,null,null,null,null,null,null,null,null,null,"Sep"]
[null,null,null,null,null,null,null,null,null,null,"Oct"]
[null,null,null,null,null,null,null,null,null,null,"Nov"]
["Comments :",null,null,null,null,null,null,null,null,null,"Dec"]
[null,null,null,null,null,null,null,null,null,null,"Annual",{"$f":"AVERAGE(L37:L48)","v":{"$error":"#DIV/0!"}},{"$f":"MAX(M37:M48)","v":0},{"$f":"AVERAGE(N37:N48)","v":{"$error":"#DIV/0!"}},{"$f":"MAX(O37:O48)","v":0}]
[]
[null,null,null,null,null,null,null,null,null,{"$f":"+A6","v":2023},"mg/Nm3","Monthly 1/2 hourly mean","Monthly 1/2 hourly maximum","Monthly daily mean","Monthly daily maximum"]
[null,null,null,null,null,null,null,null,null,"A4","Jan"]
[null,null,null,null,null,null,null,null,null,null,"Feb"]
[null,null,null,null,null,null,null,null,null,null,"Mar"]
[null,null,null,null,null,null,null,null,null,null,"Apr"]
[null,null,null,null,null,null,null,null,null,null,"May"]
[null,null,null,null,null,null,null,null,null,null,"Jun"]
[null,null,null,null,null,null,null,null,null,null,"Jul"]
[null,null,null,null,null,null,null,null,null,null,"Aug"]
[null,null,null,null,null,null,null,null,null,null,"Sep"]
[null,null,null,null,null,null,null,null,null,null,"Oct"]
[null,null,null,null,null,null,null,null,null,null,"Nov"]
[null,null,null,null,null,null,null,null,null,null,"Dec"]
[null,null,null,null,null,null,null,null,null,null,"Annual",{"$f":"AVERAGE(L52:L63)","v":{"$error":"#DIV/0!"}},{"$f":"MAX(M52:M63)","v":0},{"$f":"AVERAGE(N52:N63)","v":{"$error":"#DIV/0!"}},{"$f":"MAX(O52:O63)","v":0}]
[]
[null,null,null,null,null,null,null,null,null,{"$f":"+A6","v":2023},"mg/Nm3","Monthly 1/2 hourly mean","Monthly 1/2 hourly maximum","Monthly daily mean","Monthly daily maximum"]
[null,null,null,null,null,null,null,null,null,"A5","Jan"]
[null,null,null,null,null,null,null,null,null,null,"Feb"]
[null,null,null,null,null,null,null,null,null,null,"Mar"]
[null,null,null,null,null,null,null,null,null,null,"Apr"]
[null,null,null,null,null,null,null,null,null,null,"May"]
[null,null,null,null,null,null,null,null,null,null,"Jun"]
[null,null,null,null,null,null,null,null,null,null,"Jul"]
[null,null,null,null,null,null,null,null,null,null,"Aug"]
[null,null,null,null,null,null,null,null,null,null,"Sep"]
[null,null,null,null,null,null,null,null,null,null,"Oct"]
[null,null,null,null,null,null,null,null,null,null,"Nov"]
[null,null,null,null,null,null,null,null,null,null,"Dec"]
[null,null,null,null,null,null,null,null,null,null,"Annual",{"$f":"AVERAGE(L67:L78)","v":{"$error":"#DIV/0!"}},{"$f":"MAX(M67:M78)","v":0},{"$f":"AVERAGE(N67:N78)","v":{"$error":"#DIV/0!"}},{"$f":"MAX(O67:O78)","v":0}]

{"sheet":"NOx","index":17,"n_rows":79,"n_cols":17,"rows_kept":79,"cut":false,"hidden":false,"merged":[[3,16,7,18],[9,16,11,18],[12,16,15,18],[66,9,78,9],[4,1,4,3],[4,4,4,6],[4,9,4,14],[6,9,18,9],[21,9,33,9],[36,9,48,9],[47,0,47,6],[48,0,51,6],[51,9,63,9],[18,4,18,6]]}
[{"$f":"+'Cover Page'!$B$29","v":"Annual Performance Report 2023"},null,null,null,{"$f":"+'Cover Page'!$B$33","v":"Lakeside Energy From Waste Ltd"}]
[]
["Monitoring of Oxides of Nitrogen emissions",null,null,"Whole Installation",null,null,"See  Notes in Cell Q3",null,null,{"$f":"+A3","v":"Monitoring of Oxides of Nitrogen emissions"},null,null,null,"Per Combustion Line",null,null,"Notes:"]
[null,null,null,null,null,null,null,null,null,null,null,null,null,null,null,null,"User to add logic to complete Whole installation, Table A5:G18. From the data in Per Combustion Line, Table J6:O79, subject to No. of lines installed"]
["mg/Nm3","1/2 Hourly Reference Periods",null,null,"Daily Reference Periods"]
[{"$f":"+'Cover Page'!C39","v":2023},"1/2 hourly NOx ELV","Monthly 1/2 hourly mean","Highest 1/2 hourly maximum","Daily NOx ELV*","Monthly daily mean","Highest daily maximum",null,null,{"$f":"+A6","v":2023},"mg/Nm3","Monthly 1/2 hourly mean","Monthly 1/2 hourly maximum","Monthly daily mean","Monthly daily maximum"]
["Jan",400,{"$f":"(L7+L22)/2","v":155.54000000000002},{"$f":"(M7+M22)/2","v":253.81},200,{"$f":"(N7+N22)/2","v":155.54500000000002},{"$f":"(O7+O22)/2","v":167.68},null,null,"A1","Jan",162.24,232.61,162.24,171.95]
["Feb",400,{"$f":"(L8+L23)/2","v":157.36000000000001},{"$f":"(M8+M23)/2","v":252.94},200,{"$f":"(N8+N23)/2","v":157.36500000000001},{"$f":"(O8+O23)/2","v":171.745},null,null,null,"Feb",160.93,221.52,160.94,173.17]
["Mar",400,149.18,199.73500000000001,200,149.12,160,null,null,null,"Mar",159.19999999999999,206.82,159.07,167,null,"Whole Installation table A5:G18:"]
["Apr",400,160.92000000000002,246.845,200,161.53,177.93,null,null,null,"Apr",159.25,217.51,160.4,168.64,null,"Mean: for 1/2 hourly and daily periods calculate mean of values across all operational combustion lines for the month"]
["May",400,154.405,253.57499999999999,200,154.14999999999998,180.65,null,null,null,"May",156.77000000000001,266.87,156.79,181.75]
["Jun",400,133.625,187.31,200,133.66,160.13999999999999,null,null,null,"Jun",131.86000000000001,175.12,131.93,155.47999999999999]
["Jul",400,125.345,201.76499999999999,200,125.345,140.82499999999999,null,null,null,"Jul",121.68,210.01,121.68,135.08000000000001,null,"Maximum: for 1/2 hourly and daily periods use the highest value across all operational combustion lines for the month"]
["Aug",400,124.845,182.54000000000002,200,124.845,136.39500000000001,null,null,null,"Aug",125.07,165.25,125.07,138.77000000000001]
["Sep",400,121.905,174.95,200,121.485,139.19499999999999,null,null,null,"Sep",125.36,162.41999999999999,125.36,139.87]
["Oct",400,115.97499999999999,222.155,200,115.995,128.36000000000001,null,null,null,"Oct",115.38,218.71,115.4,124.78]
["Nov",400,116.05,177.89500000000001,200,116.015,134.35500000000002,null,null,null,"Nov",113.08,159.11000000000001,113.01,128.30000000000001]
["Dec",400,113.375,205.14500000000001,200,113.21000000000001,121.92999999999999,null,null,null,"Dec",119.21,252.86,118.88,128.04]
[null,null,null,null,"* ELV reduced to 180 mg/Nm3 on 3 December 2023",null,null,null,null,null,"Annual",{"$f":"AVERAGE(L7:L18)","v":137.50249999999997},{"$f":"MAX(M7:M18)","v":266.87},{"$f":"AVERAGE(N7:N18)","v":137.56416666666667},{"$f":"MAX(O7:O18)","v":181.75}]
[]
[null,null,null,null,null,null,null,null,null,{"$f":"+A6","v":2023},"mg/Nm3","Monthly 1/2 hourly mean","Monthly 1/2 hourly maximum","Monthly daily mean","Monthly daily maximum"]
[null,null,null,null,null,null,null,null,null,"A2","Jan",148.84,275.01,148.85,163.41]
[null,null,null,null,null,null,null,null,null,null,"Feb",153.79,284.36,153.79,170.32]
[null,null,null,null,null,null,null,null,null,null,"Mar",139.16,192.65,139.16999999999999,153]
[null,null,null,null,null,null,null,null,null,null,"Apr",162.59,276.18,162.66,187.22]
[null,null,null,null,null,null,null,null,null,null,"May",152.04,240.28,151.51,179.55]
[null,null,null,null,null,null,null,null,null,null,"Jun",135.38999999999999,199.5,135.38999999999999,164.8]
[null,null,null,null,null,null,null,null,null,null,"Jul",129.01,193.52,129.01,146.57]
[null,null,null,null,null,null,null,null,null,null,"Aug",124.62,199.83,124.62,134.02000000000001]
[null,null,null,null,null,null,null,null,null,null,"Sep",118.45,187.48,117.61,138.52000000000001]
[null,null,null,null,null,null,null,null,null,null,"Oct",116.57,225.6,116.59,131.94]
[null,null,null,null,null,null,null,null,null,null,"Nov",119.02,196.68,119.02,140.41]
[null,null,null,null,null,null,null,null,null,null,"Dec",107.54,157.43,107.54,115.82]
[null,null,null,null,null,null,null,null,null,null,"Annual",{"$f":"AVERAGE(L22:L33)","v":133.91833333333332},{"$f":"MAX(M22:M33)","v":284.36},{"$f":"AVERAGE(N22:N33)","v":133.8133333333333},{"$f":"MAX(O22:O33)","v":187.22}]
[]
[null,null,null,null,null,null,null,null,null,{"$f":"+A6","v":2023},"mg/Nm3","Monthly 1/2 hourly mean","Monthly 1/2 hourly maximum","Monthly daily mean","Monthly daily maximum"]
[null,null,null,null,null,null,null,null,null,"A3","Jan"]
[null,null,null,null,null,null,null,null,null,null,"Feb"]
[null,null,null,null,null,null,null,null,null,null,"Mar"]
[null,null,null,null,null,null,null,null,null,null,"Apr"]
[null,null,null,null,null,null,null,null,null,null,"May"]
[null,null,null,null,null,null,null,null,null,null,"Jun"]
[null,null,null,null,null,null,null,null,null,null,"Jul"]
[null,null,null,null,null,null,null,null,null,null,"Aug"]
[null,null,null,null,null,null,null,null,null,null,"Sep"]
[null,null,null,null,null,null,null,null,null,null,"Oct"]
[null,null,null,null,null,null,null,null,null,null,"Nov"]
["Comments :",null,null,null,null,null,null,null,null,null,"Dec"]
[null,null,null,null,null,null,null,null,null,null,"Annual",{"$f":"AVERAGE(L37:L48)","v":{"$error":"#DIV/0!"}},{"$f":"MAX(M37:M48)","v":0},{"$f":"AVERAGE(N37:N48)","v":{"$error":"#DIV/0!"}},{"$f":"MAX(O37:O48)","v":0}]
[]
[null,null,null,null,null,null,null,null,null,{"$f":"+A6","v":2023},"mg/Nm3","Monthly 1/2 hourly mean","Monthly 1/2 hourly maximum","Monthly daily mean","Monthly daily maximum"]
[null,null,null,null,null,null,null,null,null,"A4","Jan"]
[null,null,null,null,null,null,null,null,null,null,"Feb"]
[null,null,null,null,null,null,null,null,null,null,"Mar"]
[null,null,null,null,null,null,null,null,null,null,"Apr"]
[null,null,null,null,null,null,null,null,null,null,"May"]
[null,null,null,null,null,null,null,null,null,null,"Jun"]
[null,null,null,null,null,null,null,null,null,null,"Jul"]
[null,null,null,null,null,null,null,null,null,null,"Aug"]
[null,null,null,null,null,null,null,null,null,null,"Sep"]
[null,null,null,null,null,null,null,null,null,null,"Oct"]
[null,null,null,null,null,null,null,null,null,null,"Nov"]
[null,null,null,null,null,null,null,null,null,null,"Dec"]
[null,null,null,null,null,null,null,null,null,null,"Annual",{"$f":"AVERAGE(L52:L63)","v":{"$error":"#DIV/0!"}},{"$f":"MAX(M52:M63)","v":0},{"$f":"AVERAGE(N52:N63)","v":{"$error":"#DIV/0!"}},{"$f":"MAX(O52:O63)","v":0}]
[]
[null,null,null,null,null,null,null,null,null,{"$f":"+A6","v":2023},"mg/Nm3","Monthly 1/2 hourly mean","Monthly 1/2 hourly maximum","Monthly daily mean","Monthly daily maximum"]
[null,null,null,null,null,null,null,null,null,"A5","Jan"]
[null,null,null,null,null,null,null,null,null,null,"Feb"]
[null,null,null,null,null,null,null,null,null,null,"Mar"]
[null,null,null,null,null,null,null,null,null,null,"Apr"]
[null,null,null,null,null,null,null,null,null,null,"May"]
[null,null,null,null,null,null,null,null,null,null,"Jun"]
[null,null,null,null,null,null,null,null,null,null,"Jul"]
[null,null,null,null,null,null,null,null,null,null,"Aug"]
[null,null,null,null,null,null,null,null,null,null,"Sep"]
[null,null,null,null,null,null,null,null,null,null,"Oct"]
[null,null,null,null,null,null,null,null,null,null,"Nov"]
[null,null,null,null,null,null,null,null,null,null,"Dec"]
[null,null,null,null,null,null,null,null,null,null,"Annual",{"$f":"AVERAGE(L67:L78)","v":{"$error":"#DIV/0!"}},{"$f":"MAX(M67:M78)","v":0},{"$f":"AVERAGE(N67:N78)","v":{"$error":"#DIV/0!"}},{"$f":"MAX(O67:O78)","v":0}]

{"sheet":"TOC","index":18,"n_rows":79,"n_cols":17,"rows_kept":79,"cut":false,"hidden":false,"merged":[[3,16,7,18],[9,16,11,18],[12,16,15,18],[66,9,78,9],[4,1,4,3],[4,4,4,6],[4,9,4,14],[6,9,18,9],[21,9,33,9],[36,9,48,9],[47,0,47,6],[48,0,51,6],[51,9,63,9]]}
[{"$f":"+'Cover Page'!$B$29","v":"Annual Performance Report 2023"},null,null,null,{"$f":"+'Cover Page'!$B$33","v":"Lakeside Energy From Waste Ltd"}]
[]
["Monitoring of Total organic carbon emissions",null,null,"Whole Installation",null,null,"See  Notes in Cell Q3",null,null,{"$f":"+A3","v":"Monitoring of Total organic carbon emissions"},null,null,null,"Per Combustion Line",null,null,"Notes:"]
[null,null,null,null,null,null,null,null,null,null,null,null,null,null,null,null,"User to add logic to complete Whole installation, Table A5:G18. From the data in Per Combustion Line, Table J6:O79, subject to No. of lines installed"]
["mg/Nm3","1/2 Hourly Reference Periods",null,null,"Daily Reference Periods"]
[{"$f":"+'Cover Page'!C39","v":2023},"1/2 hourly TOC ELV","Monthly 1/2 hourly mean","Highest 1/2 hourly maximum","Daily TOC ELV","Monthly daily mean","Highest daily maximum",null,null,{"$f":"+A6","v":2023},"mg/Nm3","Monthly 1/2 hourly mean","Monthly 1/2 hourly maximum","Monthly daily mean","Monthly daily maximum"]
["Jan",20,{"$f":"(L7+L22)/2","v":0.16500000000000001},{"$f":"(M7+M22)/2","v":4.17},10,{"$f":"(N7+N22)/2","v":0.16500000000000001},{"$f":"(O7+O22)/2","v":0.31},null,null,"A1","Jan",0.08,3.65,0.08,0.17]
["Feb",20,{"$f":"(L8+L23)/2","v":0.30499999999999999},{"$f":"(M8+M23)/2","v":4.4550000000000001},10,{"$f":"(N8+N23)/2","v":0.30499999999999999},{"$f":"(O8+O23)/2","v":0.58499999999999996},null,null,null,"Feb",0.13,4.7300000000000004,0.13,0.48]
["Mar",20,0.38,4.7549999999999999,10,0.38500000000000001,0.57999999999999996,null,null,null,"Mar",0.28000000000000003,3.88,0.28999999999999998,0.42,null,"Whole Installation table A5:G18:"]
["Apr",20,0.09,3.7050000000000001,10,0.125,0.26500000000000001,null,null,null,"Apr",-0.05,2.29,0.02,0.14000000000000001,null,"Mean: for 1/2 hourly and daily periods calculate mean of values across all operational combustion lines for the month"]
["May",20,0.39,2.7949999999999999,10,0.39500000000000002,0.61499999999999999,null,null,null,"May",0.28999999999999998,4.07,0.28999999999999998,0.47]
["Jun",20,0.42,6.95,10,0.40500000000000003,0.59000000000000008,null,null,null,"Jun",0.36,9.14,0.33,0.5]
["Jul",20,0.42499999999999999,4.13,10,0.42499999999999999,0.55499999999999994,null,null,null,"Jul",0.36,3.99,0.36,0.49,null,"Maximum: for 1/2 hourly and daily periods use the highest value across all operational combustion lines for the month"]
["Aug",20,0.45500000000000002,5.7750000000000004,10,0.45500000000000002,0.64,null,null,null,"Aug",0.4,7.26,0.4,0.62]
["Sep",20,0.47000000000000003,4.5250000000000004,10,0.47000000000000003,0.84499999999999997,null,null,null,"Sep",0.39,4.96,0.39,0.69]
["Oct",20,0.44,4.3599999999999994,10,0.435,0.58499999999999996,null,null,null,"Oct",0.39,3.8,0.38,0.51]
["Nov",20,0.28500000000000003,4.0599999999999996,10,0.28500000000000003,0.40500000000000003,null,null,null,"Nov",0.38,4.8099999999999996,0.38,0.49]
["Dec",20,0.245,2.9450000000000003,10,0.245,0.375,null,null,null,"Dec",0.28999999999999998,3.25,0.28999999999999998,0.44]
[null,null,null,null,null,null,null,null,null,null,"Annual",{"$f":"AVERAGE(L7:L18)","v":0.27499999999999997},{"$f":"MAX(M7:M18)","v":9.14},{"$f":"AVERAGE(N7:N18)","v":0.27833333333333332},{"$f":"MAX(O7:O18)","v":0.69}]
[]
[null,null,null,null,null,null,null,null,null,{"$f":"+A6","v":2023},"mg/Nm3","Monthly 1/2 hourly mean","Monthly 1/2 hourly maximum","Monthly daily mean","Monthly daily maximum"]
[null,null,null,null,null,null,null,null,null,"A2","Jan",0.25,4.6900000000000004,0.25,0.45]
[null,null,null,null,null,null,null,null,null,null,"Feb",0.48,4.18,0.48,0.69]
[null,null,null,null,null,null,null,null,null,null,"Mar",0.48,5.63,0.48,0.74]
[null,null,null,null,null,null,null,null,null,null,"Apr",0.23,5.12,0.23,0.39]
[null,null,null,null,null,null,null,null,null,null,"May",0.49,1.52,0.5,0.76]
[null,null,null,null,null,null,null,null,null,null,"Jun",0.48,4.76,0.48,0.68]
[null,null,null,null,null,null,null,null,null,null,"Jul",0.49,4.2699999999999996,0.49,0.62]
[null,null,null,null,null,null,null,null,null,null,"Aug",0.51,4.29,0.51,0.66]
[null,null,null,null,null,null,null,null,null,null,"Sep",0.55000000000000004,4.09,0.55000000000000004,1]
[null,null,null,null,null,null,null,null,null,null,"Oct",0.49,4.92,0.49,0.66]
[null,null,null,null,null,null,null,null,null,null,"Nov",0.19,3.31,0.19,0.32]
[null,null,null,null,null,null,null,null,null,null,"Dec",0.2,2.64,0.2,0.31]
[null,null,null,null,null,null,null,null,null,null,"Annual",{"$f":"AVERAGE(L22:L33)","v":0.40333333333333338},{"$f":"MAX(M22:M33)","v":5.63},{"$f":"AVERAGE(N22:N33)","v":0.40416666666666673},{"$f":"MAX(O22:O33)","v":1}]
[]
[null,null,null,null,null,null,null,null,null,{"$f":"+A6","v":2023},"mg/Nm3","Monthly 1/2 hourly mean","Monthly 1/2 hourly maximum","Monthly daily mean","Monthly daily maximum"]
[null,null,null,null,null,null,null,null,null,"A3","Jan"]
[null,null,null,null,null,null,null,null,null,null,"Feb"]
[null,null,null,null,null,null,null,null,null,null,"Mar"]
[null,null,null,null,null,null,null,null,null,null,"Apr"]
[null,null,null,null,null,null,null,null,null,null,"May"]
[null,null,null,null,null,null,null,null,null,null,"Jun"]
[null,null,null,null,null,null,null,null,null,null,"Jul"]
[null,null,null,null,null,null,null,null,null,null,"Aug"]
[null,null,null,null,null,null,null,null,null,null,"Sep"]
[null,null,null,null,null,null,null,null,null,null,"Oct"]
[null,null,null,null,null,null,null,null,null,null,"Nov"]
["Comments :",null,null,null,null,null,null,null,null,null,"Dec"]
[null,null,null,null,null,null,null,null,null,null,"Annual",{"$f":"AVERAGE(L37:L48)","v":{"$error":"#DIV/0!"}},{"$f":"MAX(M37:M48)","v":0},{"$f":"AVERAGE(N37:N48)","v":{"$error":"#DIV/0!"}},{"$f":"MAX(O37:O48)","v":0}]
[]
[null,null,null,null,null,null,null,null,null,{"$f":"+A6","v":2023},"mg/Nm3","Monthly 1/2 hourly mean","Monthly 1/2 hourly maximum","Monthly daily mean","Monthly daily maximum"]
[null,null,null,null,null,null,null,null,null,"A4","Jan"]
[null,null,null,null,null,null,null,null,null,null,"Feb"]
[null,null,null,null,null,null,null,null,null,null,"Mar"]
[null,null,null,null,null,null,null,null,null,null,"Apr"]
[null,null,null,null,null,null,null,null,null,null,"May"]
[null,null,null,null,null,null,null,null,null,null,"Jun"]
[null,null,null,null,null,null,null,null,null,null,"Jul"]
[null,null,null,null,null,null,null,null,null,null,"Aug"]
[null,null,null,null,null,null,null,null,null,null,"Sep"]
[null,null,null,null,null,null,null,null,null,null,"Oct"]
[null,null,null,null,null,null,null,null,null,null,"Nov"]
[null,null,null,null,null,null,null,null,null,null,"Dec"]
[null,null,null,null,null,null,null,null,null,null,"Annual",{"$f":"AVERAGE(L52:L63)","v":{"$error":"#DIV/0!"}},{"$f":"MAX(M52:M63)","v":0},{"$f":"AVERAGE(N52:N63)","v":{"$error":"#DIV/0!"}},{"$f":"MAX(O52:O63)","v":0}]
[]
[null,null,null,null,null,null,null,null,null,{"$f":"+A6","v":2023},"mg/Nm3","Monthly 1/2 hourly mean","Monthly 1/2 hourly maximum","Monthly daily mean","Monthly daily maximum"]
[null,null,null,null,null,null,null,null,null,"A5","Jan"]
[null,null,null,null,null,null,null,null,null,null,"Feb"]
[null,null,null,null,null,null,null,null,null,null,"Mar"]
[null,null,null,null,null,null,null,null,null,null,"Apr"]
[null,null,null,null,null,null,null,null,null,null,"May"]
[null,null,null,null,null,null,null,null,null,null,"Jun"]
[null,null,null,null,null,null,null,null,null,null,"Jul"]
[null,null,null,null,null,null,null,null,null,null,"Aug"]
[null,null,null,null,null,null,null,null,null,null,"Sep"]
[null,null,null,null,null,null,null,null,null,null,"Oct"]
[null,null,null,null,null,null,null,null,null,null,"Nov"]
[null,null,null,null,null,null,null,null,null,null,"Dec"]
[null,null,null,null,null,null,null,null,null,null,"Annual",{"$f":"AVERAGE(L67:L78)","v":{"$error":"#DIV/0!"}},{"$f":"MAX(M67:M78)","v":0},{"$f":"AVERAGE(N67:N78)","v":{"$error":"#DIV/0!"}},{"$f":"MAX(O67:O78)","v":0}]

{"sheet":"Particulates","index":19,"n_rows":79,"n_cols":17,"rows_kept":79,"cut":false,"hidden":false,"merged":[[3,16,7,18],[9,16,11,18],[12,16,15,18],[66,9,78,9],[4,1,4,3],[4,4,4,6],[4,9,4,14],[6,9,18,9],[21,9,33,9],[36,9,48,9],[47,0,47,6],[48,0,51,6],[51,9,63,9],[18,4,18,6]]}
[{"$f":"+'Cover Page'!$B$29","v":"Annual Performance Report 2023"},null,null,null,{"$f":"+'Cover Page'!$B$33","v":"Lakeside Energy From Waste Ltd"}]
[]
["Monitoring of Particulate matter emissions",null,null,"Whole Installation",null,null,"See  Notes in Cell Q3",null,null,{"$f":"+A3","v":"Monitoring of Particulate matter emissions"},null,null,null,"Per Combustion Line",null,null,"Notes:"]
[null,null,null,null,null,null,null,null,null,null,null,null,null,null,null,null,"User to add logic to complete Whole installation, Table A5:G18. From the data in Per Combustion Line, Table J6:O79, subject to No. of lines installed"]
["mg/Nm3","1/2 Hourly Reference Periods",null,null,"Daily Reference Periods"]
[{"$f":"+'Cover Page'!C39","v":2023},"1/2 hourly PM ELV","Monthly 1/2 hourly mean","Highest 1/2 hourly maximum","Daily PM ELV*","Monthly daily mean","Highest daily maximum",null,null,{"$f":"+A6","v":2023},"mg/Nm3","Monthly 1/2 hourly mean","Monthly 1/2 hourly maximum","Monthly daily mean","Monthly daily maximum"]
["Jan",30,{"$f":"(L7+L22)/2","v":0.33},{"$f":"(M7+M22)/2","v":2.79},10,{"$f":"(N7+N22)/2","v":0.33},{"$f":"(O7+O22)/2","v":0.91},null,null,"A1","Jan",0.14000000000000001,0.26,0.14000000000000001,0.22]
["Feb",30,{"$f":"(L8+L23)/2","v":0.5},{"$f":"(M8+M23)/2","v":5.7149999999999999},10,{"$f":"(N8+N23)/2","v":0.5},{"$f":"(O8+O23)/2","v":3.08},null,null,null,"Feb",0.15,2.7,0.15,0.36]
["Mar",30,0.41000000000000003,4.9350000000000005,10,0.40500000000000003,2.0300000000000002,null,null,null,"Mar",0.33,3.21,0.32,1.32,null,"Whole Installation table A5:G18:"]
["Apr",30,0.60499999999999998,3.0949999999999998,10,0.38500000000000001,0.62,null,null,null,"Apr",0.7,2.34,0.27,0.44,null,"Mean: for 1/2 hourly and daily periods calculate mean of values across all operational combustion lines for the month"]
["May",30,0.46,4.5350000000000001,10,0.46,1.2649999999999999,null,null,null,"May",0.27,1.64,0.27,0.36]
["Jun",30,1.01,11.38,10,1.01,5.75,null,null,null,"Jun",1.59,15.55,1.59,6.82]
["Jul",30,0.53,25.055,10,0.53,3.6999999999999997,null,null,null,"Jul",0.3,41.4,0.3,1.47,null,"Maximum: for 1/2 hourly and daily periods use the highest value across all operational combustion lines for the month"]
["Aug",30,0.26,6.3550000000000004,10,0.26,1.625,null,null,null,"Aug",0.35,10.09,0.35,2.91]
["Sep",30,0.19500000000000001,0.70499999999999996,10,0.19500000000000001,0.23500000000000001,null,null,null,"Sep",0.24,0.47,0.24,0.28000000000000003]
["Oct",30,0.20499999999999999,0.81,10,0.20499999999999999,0.56499999999999995,null,null,null,"Oct",0.28999999999999998,1.22,0.28999999999999998,0.97]
["Nov",30,0.2,1.0049999999999999,10,0.2,0.30499999999999999,null,null,null,"Nov",0.25,0.78,0.25,0.35]
["Dec",30,0.98499999999999999,4.7149999999999999,10,0.98499999999999999,2.57,null,null,null,"Dec",1.75,6.15,1.75,4.67]
[null,null,null,null,"* ELV reduced to 5 mg/Nm3 on 3 December 2023",null,null,null,null,null,"Annual",{"$f":"AVERAGE(L7:L18)","v":0.53},{"$f":"MAX(M7:M18)","v":41.4},{"$f":"AVERAGE(N7:N18)","v":0.49333333333333335},{"$f":"MAX(O7:O18)","v":6.82}]
[]
[null,null,null,null,null,null,null,null,null,{"$f":"+A6","v":2023},"mg/Nm3","Monthly 1/2 hourly mean","Monthly 1/2 hourly maximum","Monthly daily mean","Monthly daily maximum"]
[null,null,null,null,null,null,null,null,null,"A2","Jan",0.52,5.32,0.52,1.6]
[null,null,null,null,null,null,null,null,null,null,"Feb",0.85,8.73,0.85,5.8]
[null,null,null,null,null,null,null,null,null,null,"Mar",0.49,6.66,0.49,2.74]
[null,null,null,null,null,null,null,null,null,null,"Apr",0.51,3.85,0.5,0.8]
[null,null,null,null,null,null,null,null,null,null,"May",0.65,7.43,0.65,2.17]
[null,null,null,null,null,null,null,null,null,null,"Jun",0.43,7.21,0.43,4.68]
[null,null,null,null,null,null,null,null,null,null,"Jul",0.76,8.7100000000000009,0.76,5.93]
[null,null,null,null,null,null,null,null,null,null,"Aug",0.17,2.62,0.17,0.34]
[null,null,null,null,null,null,null,null,null,null,"Sep",0.15,0.94,0.15,0.19]
[null,null,null,null,null,null,null,null,null,null,"Oct",0.12,0.4,0.12,0.16]
[null,null,null,null,null,null,null,null,null,null,"Nov",0.15,1.23,0.15,0.26]
[null,null,null,null,null,null,null,null,null,null,"Dec",0.22,3.28,0.22,0.47]
[null,null,null,null,null,null,null,null,null,null,"Annual",{"$f":"AVERAGE(L22:L33)","v":0.41833333333333339},{"$f":"MAX(M22:M33)","v":8.73},{"$f":"AVERAGE(N22:N33)","v":0.41750000000000004},{"$f":"MAX(O22:O33)","v":5.93}]
[]
[null,null,null,null,null,null,null,null,null,{"$f":"+A6","v":2023},"mg/Nm3","Monthly 1/2 hourly mean","Monthly 1/2 hourly maximum","Monthly daily mean","Monthly daily maximum"]
[null,null,null,null,null,null,null,null,null,"A3","Jan"]
[null,null,null,null,null,null,null,null,null,null,"Feb"]
[null,null,null,null,null,null,null,null,null,null,"Mar"]
[null,null,null,null,null,null,null,null,null,null,"Apr"]
[null,null,null,null,null,null,null,null,null,null,"May"]
[null,null,null,null,null,null,null,null,null,null,"Jun"]
[null,null,null,null,null,null,null,null,null,null,"Jul"]
[null,null,null,null,null,null,null,null,null,null,"Aug"]
[null,null,null,null,null,null,null,null,null,null,"Sep"]
[null,null,null,null,null,null,null,null,null,null,"Oct"]
[null,null,null,null,null,null,null,null,null,null,"Nov"]
["Comments :",null,null,null,null,null,null,null,null,null,"Dec"]
[null,null,null,null,null,null,null,null,null,null,"Annual",{"$f":"AVERAGE(L37:L48)","v":{"$error":"#DIV/0!"}},{"$f":"MAX(M37:M48)","v":0},{"$f":"AVERAGE(N37:N48)","v":{"$error":"#DIV/0!"}},{"$f":"MAX(O37:O48)","v":0}]
[]
[null,null,null,null,null,null,null,null,null,{"$f":"+A6","v":2023},"mg/Nm3","Monthly 1/2 hourly mean","Monthly 1/2 hourly maximum","Monthly daily mean","Monthly daily maximum"]
[null,null,null,null,null,null,null,null,null,"A4","Jan"]
[null,null,null,null,null,null,null,null,null,null,"Feb"]
[null,null,null,null,null,null,null,null,null,null,"Mar"]
[null,null,null,null,null,null,null,null,null,null,"Apr"]
[null,null,null,null,null,null,null,null,null,null,"May"]
[null,null,null,null,null,null,null,null,null,null,"Jun"]
[null,null,null,null,null,null,null,null,null,null,"Jul"]
[null,null,null,null,null,null,null,null,null,null,"Aug"]
[null,null,null,null,null,null,null,null,null,null,"Sep"]
[null,null,null,null,null,null,null,null,null,null,"Oct"]
[null,null,null,null,null,null,null,null,null,null,"Nov"]
[null,null,null,null,null,null,null,null,null,null,"Dec"]
[null,null,null,null,null,null,null,null,null,null,"Annual",{"$f":"AVERAGE(L52:L63)","v":{"$error":"#DIV/0!"}},{"$f":"MAX(M52:M63)","v":0},{"$f":"AVERAGE(N52:N63)","v":{"$error":"#DIV/0!"}},{"$f":"MAX(O52:O63)","v":0}]
[]
[null,null,null,null,null,null,null,null,null,{"$f":"+A6","v":2023},"mg/Nm3","Monthly 1/2 hourly mean","Monthly 1/2 hourly maximum","Monthly daily mean","Monthly daily maximum"]
[null,null,null,null,null,null,null,null,null,"A5","Jan"]
[null,null,null,null,null,null,null,null,null,null,"Feb"]
[null,null,null,null,null,null,null,null,null,null,"Mar"]
[null,null,null,null,null,null,null,null,null,null,"Apr"]
[null,null,null,null,null,null,null,null,null,null,"May"]
[null,null,null,null,null,null,null,null,null,null,"Jun"]
[null,null,null,null,null,null,null,null,null,null,"Jul"]
[null,null,null,null,null,null,null,null,null,null,"Aug"]
[null,null,null,null,null,null,null,null,null,null,"Sep"]
[null,null,null,null,null,null,null,null,null,null,"Oct"]
[null,null,null,null,null,null,null,null,null,null,"Nov"]
[null,null,null,null,null,null,null,null,null,null,"Dec"]
[null,null,null,null,null,null,null,null,null,null,"Annual",{"$f":"AVERAGE(L67:L78)","v":{"$error":"#DIV/0!"}},{"$f":"MAX(M67:M78)","v":0},{"$f":"AVERAGE(N67:N78)","v":{"$error":"#DIV/0!"}},{"$f":"MAX(O67:O78)","v":0}]

{"sheet":"CO 0.5 hourly","index":20,"n_rows":82,"n_cols":17,"rows_kept":82,"cut":false,"hidden":false,"merged":[[4,0,5,6],[6,16,10,18],[12,16,14,18],[15,16,18,18],[69,9,81,9],[7,1,7,3],[7,4,7,6],[7,9,7,14],[9,9,21,9],[24,9,36,9],[39,9,51,9],[50,0,50,6],[51,0,54,6],[54,9,66,9]]}
[{"$f":"+'Cover Page'!$B$29","v":"Annual Performance Report 2023"},null,null,null,{"$f":"+'Cover Page'!$B$33","v":"Lakeside Energy From Waste Ltd"}]
[]
["Monitoring of Carbon Monoxide (half hourly)",null,null,"Whole Installation",null,null,"See  Notes in Cell Q3",null,null,{"$f":"+A3","v":"Monitoring of Carbon Monoxide (half hourly)"},null,null,null,"Per Combustion Line",null,null,"Notes:"]
[]
["Please complete this tab for your plant if you have 1/2 hourly CO ELVs; otherwise, leave it blank and complete the CO 95% 10 min tab"]
[]
[null,null,null,null,null,null,null,null,null,null,null,null,null,null,null,null,"User to add logic to complete Whole installation, Table A5:G18. From the data in Per Combustion Line, Table J6:O79, subject to No. of lines installed"]
["mg/Nm3","1/2 Hourly Reference Periods",null,null,"Daily Reference Periods"]
[{"$f":"+'Cover Page'!C39","v":2023},"1/2 hourly CO ELV","Monthly 1/2 hourly mean","Highest 1/2 hourly maximum","Daily CO ELV","Monthly daily mean","Highest daily maximum",null,null,{"$f":"+A9","v":2023},"mg/Nm3","Monthly 1/2 hourly mean","Monthly 1/2 hourly maximum","Monthly daily mean","Monthly daily maximum"]
["Jan",100,null,null,50,null,null,null,null,"A1","Jan"]
["Feb",{"$f":"+B10","v":100},null,null,{"$f":"+E10","v":50},null,null,null,null,null,"Feb"]
["Mar",{"$f":"+B11","v":100},null,null,{"$f":"+E11","v":50},null,null,null,null,null,"Mar",null,null,null,null,null,"Whole Installation table A5:G18:"]
["Apr",100,null,null,50,null,null,null,null,null,"Apr",null,null,null,null,null,"Mean: for 1/2 hourly and daily periods calculate mean of values across all operational combustion lines for the month"]
["May",100,null,null,50,null,null,null,null,null,"May"]
["Jun",100,null,null,50,null,null,null,null,null,"Jun"]
["Jul",100,null,null,50,null,null,null,null,null,"Jul",null,null,null,null,null,"Maximum: for 1/2 hourly and daily periods use the highest value across all operational combustion lines for the month"]
["Aug",100,null,null,50,null,null,null,null,null,"Aug"]
["Sep",100,null,null,50,null,null,null,null,null,"Sep"]
["Oct",100,null,null,50,null,null,null,null,null,"Oct"]
["Nov",100,null,null,50,null,null,null,null,null,"Nov"]
["Dec",100,null,null,50,null,null,null,null,null,"Dec"]
[null,null,null,null,null,null,null,null,null,null,"Annual",{"$f":"AVERAGE(L10:L21)","v":{"$error":"#DIV/0!"}},{"$f":"MAX(M10:M21)","v":0},{"$f":"AVERAGE(N10:N21)","v":{"$error":"#DIV/0!"}},{"$f":"MAX(O10:O21)","v":0}]
[]
[null,null,null,null,null,null,null,null,null,{"$f":"+A9","v":2023},"mg/Nm3","Monthly 1/2 hourly mean","Monthly 1/2 hourly maximum","Monthly daily mean","Monthly daily maximum"]
[null,null,null,null,null,null,null,null,null,"A2","Jan"]
[null,null,null,null,null,null,null,null,null,null,"Feb"]
[null,null,null,null,null,null,null,null,null,null,"Mar"]
[null,null,null,null,null,null,null,null,null,null,"Apr"]
[null,null,null,null,null,null,null,null,null,null,"May"]
[null,null,null,null,null,null,null,null,null,null,"Jun"]
[null,null,null,null,null,null,null,null,null,null,"Jul"]
[null,null,null,null,null,null,null,null,null,null,"Aug"]
[null,null,null,null,null,null,null,null,null,null,"Sep"]
[null,null,null,null,null,null,null,null,null,null,"Oct"]
[null,null,null,null,null,null,null,null,null,null,"Nov"]
[null,null,null,null,null,null,null,null,null,null,"Dec"]
[null,null,null,null,null,null,null,null,null,null,"Annual",{"$f":"AVERAGE(L25:L36)","v":{"$error":"#DIV/0!"}},{"$f":"MAX(M25:M36)","v":0},{"$f":"AVERAGE(N25:N36)","v":{"$error":"#DIV/0!"}},{"$f":"MAX(O25:O36)","v":0}]
[]
[null,null,null,null,null,null,null,null,null,{"$f":"+A9","v":2023},"mg/Nm3","Monthly 1/2 hourly mean","Monthly 1/2 hourly maximum","Monthly daily mean","Monthly daily maximum"]
[null,null,null,null,null,null,null,null,null,"A3","Jan"]
[null,null,null,null,null,null,null,null,null,null,"Feb"]
[null,null,null,null,null,null,null,null,null,null,"Mar"]
[null,null,null,null,null,null,null,null,null,null,"Apr"]
[null,null,null,null,null,null,null,null,null,null,"May"]
[null,null,null,null,null,null,null,null,null,null,"Jun"]
[null,null,null,null,null,null,null,null,null,null,"Jul"]
[null,null,null,null,null,null,null,null,null,null,"Aug"]
[null,null,null,null,null,null,null,null,null,null,"Sep"]
[null,null,null,null,null,null,null,null,null,null,"Oct"]
[null,null,null,null,null,null,null,null,null,null,"Nov"]
["Comments :",null,null,null,null,null,null,null,null,null,"Dec"]
[null,null,null,null,null,null,null,null,null,null,"Annual",{"$f":"AVERAGE(L40:L51)","v":{"$error":"#DIV/0!"}},{"$f":"MAX(M40:M51)","v":0},{"$f":"AVERAGE(N40:N51)","v":{"$error":"#DIV/0!"}},{"$f":"MAX(O40:O51)","v":0}]
[]
[null,null,null,null,null,null,null,null,null,{"$f":"+A9","v":2023},"mg/Nm3","Monthly 1/2 hourly mean","Monthly 1/2 hourly maximum","Monthly daily mean","Monthly daily maximum"]
[null,null,null,null,null,null,null,null,null,"A4","Jan"]
[null,null,null,null,null,null,null,null,null,null,"Feb"]
[null,null,null,null,null,null,null,null,null,null,"Mar"]
[null,null,null,null,null,null,null,null,null,null,"Apr"]
[null,null,null,null,null,null,null,null,null,null,"May"]
[null,null,null,null,null,null,null,null,null,null,"Jun"]
[null,null,null,null,null,null,null,null,null,null,"Jul"]
[null,null,null,null,null,null,null,null,null,null,"Aug"]
[null,null,null,null,null,null,null,null,null,null,"Sep"]
[null,null,null,null,null,null,null,null,null,null,"Oct"]
[null,null,null,null,null,null,null,null,null,null,"Nov"]
[null,null,null,null,null,null,null,null,null,null,"Dec"]
[null,null,null,null,null,null,null,null,null,null,"Annual",{"$f":"AVERAGE(L55:L66)","v":{"$error":"#DIV/0!"}},{"$f":"MAX(M55:M66)","v":0},{"$f":"AVERAGE(N55:N66)","v":{"$error":"#DIV/0!"}},{"$f":"MAX(O55:O66)","v":0}]
[]
[null,null,null,null,null,null,null,null,null,{"$f":"+A9","v":2023},"mg/Nm3","Monthly 1/2 hourly mean","Monthly 1/2 hourly maximum","Monthly daily mean","Monthly daily maximum"]
[null,null,null,null,null,null,null,null,null,"A5","Jan"]
[null,null,null,null,null,null,null,null,null,null,"Feb"]
[null,null,null,null,null,null,null,null,null,null,"Mar"]
[null,null,null,null,null,null,null,null,null,null,"Apr"]
[null,null,null,null,null,null,null,null,null,null,"May"]
[null,null,null,null,null,null,null,null,null,null,"Jun"]
[null,null,null,null,null,null,null,null,null,null,"Jul"]
[null,null,null,null,null,null,null,null,null,null,"Aug"]
[null,null,null,null,null,null,null,null,null,null,"Sep"]
[null,null,null,null,null,null,null,null,null,null,"Oct"]
[null,null,null,null,null,null,null,null,null,null,"Nov"]
[null,null,null,null,null,null,null,null,null,null,"Dec"]
[null,null,null,null,null,null,null,null,null,null,"Annual",{"$f":"AVERAGE(L70:L81)","v":{"$error":"#DIV/0!"}},{"$f":"MAX(M70:M81)","v":0},{"$f":"AVERAGE(N70:N81)","v":{"$error":"#DIV/0!"}},{"$f":"MAX(O70:O81)","v":0}]

{"sheet":"CO 95% 10 min","index":21,"n_rows":82,"n_cols":19,"rows_kept":82,"cut":false,"hidden":false,"merged":[[4,0,5,7],[6,18,10,20],[12,18,14,20],[15,18,18,20],[69,10,81,10],[7,1,7,4],[7,5,7,7],[7,10,7,16],[9,10,21,10],[24,10,36,10],[39,10,51,10],[50,0,50,7],[51,0,54,7],[54,10,66,10]]}
[{"$f":"+'Cover Page'!$B$29","v":"Annual Performance Report 2023"},null,null,null,{"$f":"+'Cover Page'!$B$33","v":"Lakeside Energy From Waste Ltd"}]
[]
["Monitoring of Carbon Monoxide (10-minute avg)",null,null,null,"Whole Installation",null,null,"See  Notes in Cell S3",null,{"$f":"+A3","v":"Monitoring of Carbon Monoxide (10-minute avg)"},null,null,null,null,"Per Combustion Line",null,"Notes:",null,"Notes:"]
[]
["Please complete this tab for your plant if you have 10-minute average CO ELVs; otherwise, leave it blank and complete the CO 0.5 hourly tab"]
[]
[null,null,null,null,null,null,null,null,null,null,null,null,null,null,null,null,null,null,"User to add logic to complete Whole installation, Table A5:H18. From the data in Per Combustion Line, Table K6:Q79, subject to No. of lines installed"]
["mg/Nm3","10-minute Reference Periods",null,null,null,"Daily Reference Periods"]
[{"$f":"+'Cover Page'!C39","v":2023},"95%ile 10-min avg CO ELV","95%ile 10-min avg maximum","Monthly CO 10-min avg mean","10-min avg maximum","Daily CO ELV","Monthly daily mean","Highest daily maximum",null,null,{"$f":"+A9","v":2023},"mg/Nm3","95%ile 10-min avg maximum","Monthly CO 10-min avg mean","10-min avg maximum","Monthly daily mean","Monthly daily maximum"]
["Jan",150,{"$f":"+(M10+M25)/2","v":16.73},{"$f":"+(N10+N25)/2","v":2.9550000000000001},{"$f":"+(O10+O25)/2","v":440.57},50,{"$f":"(P10+P25)/2","v":2.96},{"$f":"(Q10+Q25)/2","v":5.9700000000000006},null,null,"A1","Jan",18.61,2.87,601.4,2.88,6.41]
["Feb",{"$f":"+B10","v":150},{"$f":"+(M11+M26)/2","v":21.67},{"$f":"+(N11+N26)/2","v":3.54},{"$f":"+(O11+O26)/2","v":398.41999999999996},{"$f":"+F10","v":50},{"$f":"(P11+P26)/2","v":3.5350000000000001},{"$f":"(Q11+Q26)/2","v":9.09},null,null,null,"Feb",18.47,3.34,451.46,3.33,8.34]
["Mar",{"$f":"+B11","v":150},24.104999999999997,4.4950000000000001,622.31999999999994,{"$f":"+F11","v":50},4.5049999999999999,9.27,null,null,null,"Mar",16.16,3.96,592.12,3.98,8.2100000000000009,null,"Whole Installation table A5:H18:"]
["Apr",150,31.63,4.625,253.39499999999998,50,4.43,8.6549999999999994,null,null,null,"Apr",48.37,7.84,315.70999999999998,7.45,11.94,null,"Mean: for 10-min and daily periods use average of all operational combustion lines."]
["May",150,39.694999999999993,5.9749999999999996,395.18499999999995,50,6.0750000000000002,13.25,null,null,null,"May",38.659999999999997,5.92,675.18,5.91,10.92]
["Jun",150,54.495000000000005,6.2149999999999999,707.02,50,6.07,12.42,null,null,null,"Jun",35.49,7.33,823.93,7.04,12.5]
["Jul",150,63.180000000000007,6.8849999999999998,485.51,50,6.8849999999999998,12.785,null,null,null,"Jul",54.71,8.67,615.76,8.67,14.03,null,"Maximum: for 10-min and daily periods use the highest of all operational combustion lines in any month."]
["Aug",150,69.924999999999997,8.17,701.94,50,8.1750000000000007,16.555,null,null,null,"Aug",55.48,9.75,619.28,9.76,19.89]
["Sep",150,105.31,7.7100000000000009,464.2,50,7.7450000000000001,18.335000000000001,null,null,null,"Sep",121.4,7.98,354.28,7.98,17.43]
["Oct",150,73.594999999999999,8.1050000000000004,473.505,50,8.1150000000000002,15.59,null,null,null,"Oct",50.2,8.9700000000000006,334.94,8.98,13.18]
["Nov",150,49.480000000000004,5.64,410.29499999999996,50,5.63,11.285,null,null,null,"Nov",55.42,7.27,477.32,7.25,13.95]
["Dec",150,41.064999999999998,5.8450000000000006,343.76,50,5.835,13.23,null,null,null,"Dec",56.6,6.57,376.92,6.55,16.489999999999998]
[null,null,null,null,null,null,null,null,null,null,null,"Annual",{"$f":"AVERAGE(M10:M21)","v":47.464166666666671},{"$f":"AVERAGE(N10:N21)","v":6.7058333333333335},{"$f":"MAX(O10:O21)","v":823.93},{"$f":"AVERAGE(P10:P21)","v":6.6483333333333334},{"$f":"MAX(Q10:Q21)","v":19.89}]
[]
[null,null,null,null,null,null,null,null,null,null,{"$f":"+A9","v":2023},"mg/Nm3","95%ile 10-min avg maximum","Monthly CO 10-min avg mean","10-min avg maximum","Monthly daily mean","Monthly daily maximum"]
[null,null,null,null,null,null,null,null,null,null,"A2","Jan",14.85,3.04,279.74,3.04,5.53]
[null,null,null,null,null,null,null,null,null,null,null,"Feb",24.87,3.74,345.38,3.74,9.84]
[null,null,null,null,null,null,null,null,null,null,null,"Mar",32.049999999999997,5.03,652.52,5.03,10.33]
[null,null,null,null,null,null,null,null,null,null,null,"Apr",14.89,1.41,191.08,1.41,5.37]
[null,null,null,null,null,null,null,null,null,null,null,"May",40.729999999999997,6.03,115.19,6.24,15.58]
[null,null,null,null,null,null,null,null,null,null,null,"Jun",73.5,5.0999999999999996,590.11,5.0999999999999996,12.34]
[null,null,null,null,null,null,null,null,null,null,null,"Jul",71.650000000000006,5.0999999999999996,355.26,5.0999999999999996,11.54]
[null,null,null,null,null,null,null,null,null,null,null,"Aug",84.37,6.59,784.6,6.59,13.22]
[null,null,null,null,null,null,null,null,null,null,null,"Sep",89.22,7.44,574.12,7.51,19.239999999999998]
[null,null,null,null,null,null,null,null,null,null,null,"Oct",96.99,7.24,612.07000000000005,7.25,18]
[null,null,null,null,null,null,null,null,null,null,null,"Nov",43.54,4.01,343.27,4.01,8.6199999999999992]
[null,null,null,null,null,null,null,null,null,null,null,"Dec",25.53,5.12,310.60000000000002,5.12,9.9700000000000006]
[null,null,null,null,null,null,null,null,null,null,null,"Annual",{"$f":"AVERAGE(M25:M36)","v":51.015833333333326},{"$f":"AVERAGE(N25:N36)","v":4.9874999999999998},{"$f":"MAX(O25:O36)","v":784.6},{"$f":"AVERAGE(P25:P36)","v":5.0116666666666658},{"$f":"MAX(Q25:Q36)","v":19.239999999999998}]
[]
[null,null,null,null,null,null,null,null,null,null,{"$f":"+A9","v":2023},"mg/Nm3","95%ile 10-min avg maximum","Monthly CO 10-min avg mean","10-min avg maximum","Monthly daily mean","Monthly daily maximum"]
[null,null,null,null,null,null,null,null,null,null,"A3","Jan"]
[null,null,null,null,null,null,null,null,null,null,null,"Feb"]
[null,null,null,null,null,null,null,null,null,null,null,"Mar"]
[null,null,null,null,null,null,null,null,null,null,null,"Apr"]
[null,null,null,null,null,null,null,null,null,null,null,"May"]
[null,null,null,null,null,null,null,null,null,null,null,"Jun"]
[null,null,null,null,null,null,null,null,null,null,null,"Jul"]
[null,null,null,null,null,null,null,null,null,null,null,"Aug"]
[null,null,null,null,null,null,null,null,null,null,null,"Sep"]
[null,null,null,null,null,null,null,null,null,null,null,"Oct"]
[null,null,null,null,null,null,null,null,null,null,null,"Nov"]
["Comments :",null,null,null,null,null,null,null,null,null,null,"Dec"]
["Environment Agency explanatory note: The 10-minute average ELV is based on the “95th percentile”. In this case this means that 95% of the 10 minute averages in the relevant 24-hour period (i.e. 137) must be below 150 mg/Nm3, and 5% (i.e. 7) are allowed to be any value above 150 mg/Nm3. Whilst we expect operators to minimise CO emissions at all times, it is perfectly acceptable for the value of the maximum 10-minute average to be above 150 mg/Nm3, provided the 95th percentile ELV has been met for that period. ",null,null,null,null,null,null,null,null,null,null,"Annual",{"$f":"AVERAGE(M40:M51)","v":{"$error":"#DIV/0!"}},null,{"$f":"MAX(O40:O51)","v":0},{"$f":"AVERAGE(P40:P51)","v":{"$error":"#DIV/0!"}},{"$f":"MAX(Q40:Q51)","v":0}]
[]
[null,null,null,null,null,null,null,null,null,null,{"$f":"+A9","v":2023},"mg/Nm3","95%ile 10-min avg maximum","Monthly CO 10-min avg mean","10-min avg maximum","Monthly daily mean","Monthly daily maximum"]
[null,null,null,null,null,null,null,null,null,null,"A4","Jan"]
[null,null,null,null,null,null,null,null,null,null,null,"Feb"]
[null,null,null,null,null,null,null,null,null,null,null,"Mar"]
[null,null,null,null,null,null,null,null,null,null,null,"Apr"]
[null,null,null,null,null,null,null,null,null,null,null,"May"]
[null,null,null,null,null,null,null,null,null,null,null,"Jun"]
[null,null,null,null,null,null,null,null,null,null,null,"Jul"]
[null,null,null,null,null,null,null,null,null,null,null,"Aug"]
[null,null,null,null,null,null,null,null,null,null,null,"Sep"]
[null,null,null,null,null,null,null,null,null,null,null,"Oct"]
[null,null,null,null,null,null,null,null,null,null,null,"Nov"]
[null,null,null,null,null,null,null,null,null,null,null,"Dec"]
[null,null,null,null,null,null,null,null,null,null,null,"Annual",{"$f":"AVERAGE(M55:M66)","v":{"$error":"#DIV/0!"}},null,{"$f":"MAX(O55:O66)","v":0},{"$f":"AVERAGE(P55:P66)","v":{"$error":"#DIV/0!"}},{"$f":"MAX(Q55:Q66)","v":0}]
[]
[null,null,null,null,null,null,null,null,null,null,{"$f":"+A9","v":2023},"mg/Nm3","95%ile 10-min avg maximum","Monthly CO 10-min avg mean","10-min avg maximum","Monthly daily mean","Monthly daily maximum"]
[null,null,null,null,null,null,null,null,null,null,"A5","Jan"]
[null,null,null,null,null,null,null,null,null,null,null,"Feb"]
[null,null,null,null,null,null,null,null,null,null,null,"Mar"]
[null,null,null,null,null,null,null,null,null,null,null,"Apr"]
[null,null,null,null,null,null,null,null,null,null,null,"May"]
[null,null,null,null,null,null,null,null,null,null,null,"Jun"]
[null,null,null,null,null,null,null,null,null,null,null,"Jul"]
[null,null,null,null,null,null,null,null,null,null,null,"Aug"]
[null,null,null,null,null,null,null,null,null,null,null,"Sep"]
[null,null,null,null,null,null,null,null,null,null,null,"Oct"]
[null,null,null,null,null,null,null,null,null,null,null,"Nov"]
[null,null,null,null,null,null,null,null,null,null,null,"Dec"]
[null,null,null,null,null,null,null,null,null,null,null,"Annual",{"$f":"AVERAGE(M70:M81)","v":{"$error":"#DIV/0!"}},null,{"$f":"MAX(O70:O81)","v":0},{"$f":"AVERAGE(P70:P81)","v":{"$error":"#DIV/0!"}},{"$f":"MAX(Q70:Q81)","v":0}]

{"sheet":"NH3","index":22,"n_rows":79,"n_cols":17,"rows_kept":79,"cut":false,"hidden":false,"merged":[[3,16,7,18],[9,16,11,18],[12,16,15,18],[66,9,78,9],[4,1,4,3],[4,4,4,6],[4,9,4,14],[6,9,18,9],[21,9,33,9],[36,9,48,9],[47,0,47,6],[48,0,51,6],[51,9,63,9],[18,4,18,6]]}
[{"$f":"+'Cover Page'!$B$29","v":"Annual Performance Report 2023"},null,null,null,{"$f":"+'Cover Page'!$B$33","v":"Lakeside Energy From Waste Ltd"}]
[]
["Monitoring of Ammnonia emissions ",null,null,"Whole Installation",null,null,"See  Notes in Cell Q3",null,null,{"$f":"+A3","v":"Monitoring of Ammnonia emissions "},null,null,null,"Per Combustion Line",null,null,"Notes:"]
[null,null,null,null,null,null,null,null,null,null,null,null,null,null,null,null,"User to add logic to complete Whole installation, Table A5:G18. From the data in Per Combustion Line, Table J6:O79, subject to No. of lines installed"]
["mg/Nm3","1/2 Hourly Reference Periods",null,null,"Daily Reference Periods"]
[{"$f":"+'Cover Page'!C39","v":2023},"1/2 hourly NH3 ELV","Monthly 1/2 hourly mean","Highest 1/2 hourly maximum","Daily NH3 ELV*","Monthly daily mean","Highest daily maximum",null,null,{"$f":"+A6","v":2023},"mg/Nm3","Monthly 1/2 hourly mean","Monthly 1/2 hourly maximum","Monthly daily mean","Monthly daily maximum"]
["Jan","None",{"$f":"(L7+L22)/2","v":2.0000000000000004E-2},{"$f":"(M7+M22)/2","v":1.4449999999999998},"None",{"$f":"(N7+N22)/2","v":2.0000000000000004E-2},{"$f":"(O7+O22)/2","v":0.125},null,null,"A1","Jan",-0.06,1.5,-0.06,0.06]
["Feb",{"$f":"+B7","v":"None"},{"$f":"(L8+L23)/2","v":1.4999999999999999E-2},{"$f":"(M8+M23)/2","v":0.89500000000000002},"None",{"$f":"(N8+N23)/2","v":1.4999999999999999E-2},{"$f":"(O8+O23)/2","v":0.11499999999999999},null,null,null,"Feb",-0.08,0.91,-0.08,0.02]
["Mar",{"$f":"+B8","v":"None"},-2.5000000000000001E-2,1.76,"None",-2.5000000000000001E-2,0.09,null,null,null,"Mar",-0.16,0.85,-0.16,-0.12,null,"Whole Installation table A5:G18:"]
["Apr","None",1.4999999999999999E-2,1.2749999999999999,"None",1.4999999999999999E-2,0.14499999999999999,null,null,null,"Apr",-0.06,0.71,-0.06,0.11,null,"Mean: for 1/2 hourly and daily periods calculate mean of values across all operational combustion lines for the month"]
["May","None",0.05,0.87,"None",0.05,0.27,null,null,null,"May",-0.1,0.79,-0.1,7.0000000000000007E-2]
["Jun","None",4.9999999999999996E-2,6.26,"None",4.9999999999999996E-2,0.21000000000000002,null,null,null,"Jun",-0.05,10.39,-0.05,0.17]
["Jul","None",7.4999999999999997E-2,1.385,"None",7.4999999999999997E-2,0.27,null,null,null,"Jul",-0.01,1.47,-0.01,0.22,null,"Maximum: for 1/2 hourly and daily periods use the highest value across all operational combustion lines for the month"]
["Aug","None",7.0000000000000007E-2,1.125,"None",7.0000000000000007E-2,0.27500000000000002,null,null,null,"Aug",-0.03,1.45,-0.03,0.26]
["Sep","None",6.0000000000000005E-2,0.86,"None",0.05,0.26,null,null,null,"Sep",-0.05,0.82,-7.0000000000000007E-2,0.24]
["Oct","None",8.5000000000000006E-2,0.80499999999999994,"None",8.5000000000000006E-2,0.215,null,null,null,"Oct",0,0.74,0,0.13]
["Nov","None",3.4999999999999996E-2,0.51500000000000001,"None",3.4999999999999996E-2,0.155,null,null,null,"Nov",-0.02,0.71,-0.02,0.13]
["Dec","None",0.05,0.505,15,0.05,0.23,null,null,null,"Dec",0.04,0.72,0.04,0.32]
[null,null,null,null,"* ELV came into force on 3 December 2023",null,null,null,null,null,"Annual",{"$f":"AVERAGE(L7:L18)","v":-4.8333333333333346E-2},{"$f":"MAX(M7:M18)","v":10.39},{"$f":"AVERAGE(N7:N18)","v":-5.000000000000001E-2},{"$f":"MAX(O7:O18)","v":0.32}]
[]
[null,null,null,null,null,null,null,null,null,{"$f":"+A6","v":2023},"mg/Nm3","Monthly 1/2 hourly mean","Monthly 1/2 hourly maximum","Monthly daily mean","Monthly daily maximum"]
[null,null,null,null,null,null,null,null,null,"A2","Jan",0.1,1.39,0.1,0.19]
[null,null,null,null,null,null,null,null,null,null,"Feb",0.11,0.88,0.11,0.21]
[null,null,null,null,null,null,null,null,null,null,"Mar",0.11,2.67,0.11,0.3]
[null,null,null,null,null,null,null,null,null,null,"Apr",0.09,1.84,0.09,0.18]
[null,null,null,null,null,null,null,null,null,null,"May",0.2,0.95,0.2,0.47]
[null,null,null,null,null,null,null,null,null,null,"Jun",0.15,2.13,0.15,0.25]
[null,null,null,null,null,null,null,null,null,null,"Jul",0.16,1.3,0.16,0.32]
[null,null,null,null,null,null,null,null,null,null,"Aug",0.17,0.8,0.17,0.28999999999999998]
[null,null,null,null,null,null,null,null,null,null,"Sep",0.17,0.9,0.17,0.28000000000000003]
[null,null,null,null,null,null,null,null,null,null,"Oct",0.17,0.87,0.17,0.3]
[null,null,null,null,null,null,null,null,null,null,"Nov",0.09,0.32,0.09,0.18]
[null,null,null,null,null,null,null,null,null,null,"Dec",0.06,0.28999999999999998,0.06,0.14000000000000001]
[null,null,null,null,null,null,null,null,null,null,"Annual",{"$f":"AVERAGE(L22:L33)","v":0.13166666666666668},{"$f":"MAX(M22:M33)","v":2.67},{"$f":"AVERAGE(N22:N33)","v":0.13166666666666668},{"$f":"MAX(O22:O33)","v":0.47}]
[]
[null,null,null,null,null,null,null,null,null,{"$f":"+A6","v":2023},"mg/Nm3","Monthly 1/2 hourly mean","Monthly 1/2 hourly maximum","Monthly daily mean","Monthly daily maximum"]
[null,null,null,null,null,null,null,null,null,"A3","Jan"]
[null,null,null,null,null,null,null,null,null,null,"Feb"]
[null,null,null,null,null,null,null,null,null,null,"Mar"]
[null,null,null,null,null,null,null,null,null,null,"Apr"]
[null,null,null,null,null,null,null,null,null,null,"May"]
[null,null,null,null,null,null,null,null,null,null,"Jun"]
[null,null,null,null,null,null,null,null,null,null,"Jul"]
[null,null,null,null,null,null,null,null,null,null,"Aug"]
[null,null,null,null,null,null,null,null,null,null,"Sep"]
[null,null,null,null,null,null,null,null,null,null,"Oct"]
[null,null,null,null,null,null,null,null,null,null,"Nov"]
["Comments :",null,null,null,null,null,null,null,null,null,"Dec"]
["An indicated ELV value of zero in the table above means that no ammonia limit is/was set in the permit.  ",null,null,null,null,null,null,null,null,null,"Annual",{"$f":"AVERAGE(L37:L48)","v":{"$error":"#DIV/0!"}},{"$f":"MAX(M37:M48)","v":0},{"$f":"AVERAGE(N37:N48)","v":{"$error":"#DIV/0!"}},{"$f":"MAX(O37:O48)","v":0}]
[]
[null,null,null,null,null,null,null,null,null,{"$f":"+A6","v":2023},"mg/Nm3","Monthly 1/2 hourly mean","Monthly 1/2 hourly maximum","Monthly daily mean","Monthly daily maximum"]
[null,null,null,null,null,null,null,null,null,"A4","Jan"]
[null,null,null,null,null,null,null,null,null,null,"Feb"]
[null,null,null,null,null,null,null,null,null,null,"Mar"]
[null,null,null,null,null,null,null,null,null,null,"Apr"]
[null,null,null,null,null,null,null,null,null,null,"May"]
[null,null,null,null,null,null,null,null,null,null,"Jun"]
[null,null,null,null,null,null,null,null,null,null,"Jul"]
[null,null,null,null,null,null,null,null,null,null,"Aug"]
[null,null,null,null,null,null,null,null,null,null,"Sep"]
[null,null,null,null,null,null,null,null,null,null,"Oct"]
[null,null,null,null,null,null,null,null,null,null,"Nov"]
[null,null,null,null,null,null,null,null,null,null,"Dec"]
[null,null,null,null,null,null,null,null,null,null,"Annual",{"$f":"AVERAGE(L52:L63)","v":{"$error":"#DIV/0!"}},{"$f":"MAX(M52:M63)","v":0},{"$f":"AVERAGE(N52:N63)","v":{"$error":"#DIV/0!"}},{"$f":"MAX(O52:O63)","v":0}]
[]
[null,null,null,null,null,null,null,null,null,{"$f":"+A6","v":2023},"mg/Nm3","Monthly 1/2 hourly mean","Monthly 1/2 hourly maximum","Monthly daily mean","Monthly daily maximum"]
[null,null,null,null,null,null,null,null,null,"A5","Jan"]
[null,null,null,null,null,null,null,null,null,null,"Feb"]
[null,null,null,null,null,null,null,null,null,null,"Mar"]
[null,null,null,null,null,null,null,null,null,null,"Apr"]
[null,null,null,null,null,null,null,null,null,null,"May"]
[null,null,null,null,null,null,null,null,null,null,"Jun"]
[null,null,null,null,null,null,null,null,null,null,"Jul"]
[null,null,null,null,null,null,null,null,null,null,"Aug"]
[null,null,null,null,null,null,null,null,null,null,"Sep"]
[null,null,null,null,null,null,null,null,null,null,"Oct"]
[null,null,null,null,null,null,null,null,null,null,"Nov"]
[null,null,null,null,null,null,null,null,null,null,"Dec"]
[null,null,null,null,null,null,null,null,null,null,"Annual",{"$f":"AVERAGE(L67:L78)","v":{"$error":"#DIV/0!"}},{"$f":"MAX(M67:M78)","v":0},{"$f":"AVERAGE(N67:N78)","v":{"$error":"#DIV/0!"}},{"$f":"MAX(O67:O78)","v":0}]